Workbook

Sheet RESULTATS
B2: RESULTATS REELS
B4: A SAISIR SUR CETTE PAGE
B6: SAISIE DES RESULTATS | S6: GROUPES | AE6: PHASES FINALES
B7: Date | C7: Heure | D7: Match | E7: Groupe | F7: 1 | G7: N | H7: 2 | J7: Buts | M7: Buts | S7: suivi des scores|||||||||||||||||||||||||||||||||||||||||||||||||||||||||||||||||||| | AE7: Dernière saisie des scores >>> | AM7: jeudi 22 février 2018 à 12:34:41
B8: =VLOOKUP($D8,TABLEAU_MATCHS[#All],2,FALSE) -> 2018-06-14 | C8: =VLOOKUP($D8,TABLEAU_MATCHS[#All],3,FALSE) -> 18:00:00 | D8: 1 | E8: ="Groupe "&VLOOKUP($I8,TABLEAU_TEAMS[[#All],[TEAM]:[GROUP_INITIAL_RANK]],2,FALSE) -> Groupe A | I8: =VLOOKUP($D8,TABLEAU_MATCHS[#All],4,FALSE) -> Russie | J8: 5 | L8: =VLOOKUP($D8,TABLEAU_MATCHS[#All],5,FALSE) -> Arabie Saoudite | M8: 0 | S8: Rg | T8: Groupe A | U8: MJ | V8: G | W8: N | X8: P | Y8: BP | Z8: BC | AA8: +/- | AB8: Pts | AE8: Date | AF8: Finale | AI8: Buts | AK8: Pen | AO8: Buts | AQ8: Pen
B9: =VLOOKUP($D9,TABLEAU_MATCHS[#All],2,FALSE) -> 2018-06-15 | C9: =VLOOKUP($D9,TABLEAU_MATCHS[#All],3,FALSE) -> 17:00:00 | D9: 2 | E9: ="Groupe "&VLOOKUP($I9,TABLEAU_TEAMS[[#All],[TEAM]:[GROUP_INITIAL_RANK]],2,FALSE) -> Groupe A | I9: =VLOOKUP($D9,TABLEAU_MATCHS[#All],4,FALSE) -> Egypte | J9: 0 | L9: =VLOOKUP($D9,TABLEAU_MATCHS[#All],5,FALSE) -> Uruguay | M9: 1 | Q9: =INDEX($Q60:$Q63,MATCH(SMALL(COUNTIF($Q60:$Q63,">="&$Q60:$Q63),ROW(INDIRECT("1:"&ROWS($Q60:$Q63)))),COUNTIF($Q60:$Q63,">="&$Q60:$Q63),0)) -> 09550Uruguay | R9: =INDEX($R60:$R63,MATCH(SMALL(COUNTIF($Q60:$Q63,">="&$Q60:$Q63),ROW(INDIRECT("1:"&ROWS($Q60:$Q63)))),COUNTIF($Q60:$Q63,">="&$Q60:$Q63),0)) -> 9550 | S9: =INDEX($S60:$S63,MATCH(SMALL(COUNTIF($Q60:$Q63,">="&$Q60:$Q63),ROW(INDIRECT("1:"&ROWS($Q60:$Q63)))),COUNTIF($Q60:$Q63,">="&$Q60:$Q63),0)) -> 1 | T9: =INDEX($T60:$T63,MATCH(SMALL(COUNTIF($Q60:$Q63,">="&$Q60:$Q63),ROW(INDIRECT("1:"&ROWS($Q60:$Q63)))),COUNTIF($Q60:$Q63,">="&$Q60:$Q63),0)) -> Uruguay | U9: =SUMPRODUCT((Teams1=T9)*(Teams1_Score<>""))+SUMPRODUCT((Teams2=T9)*(Teams2_Score<>"")) -> 3 | V9: =SUMPRODUCT((Teams1=T9)*(Teams1_Score>Teams2_Score))+SUMPRODUCT((Teams2=T9)*(Teams2_Score>Teams1_Score)) -> 3 | W9: =SUMPRODUCT((Teams1=T9)*(Teams1_Score=Teams2_Score)*(Teams1_Score<>""))+SUMPRODUCT((Teams2=T9)*(Teams2_Score=Teams1_Score)*(Teams2_Score<>"")) -> 0 | X9: =SUMPRODUCT((Teams1=T9)*(Teams1_Score<Teams2_Score))+SUMPRODUCT((Teams2=T9)*(Teams2_Score<Teams1_Score)) -> 0 | Y9: =SUMPRODUCT((Teams1=T9)*(Teams1_Score))+SUMPRODUCT((Teams2=T9)*(Teams2_Score)) -> 5 | Z9: =SUMPRODUCT((Teams1=T9)*(Teams2_Score))+SUMPRODUCT((Teams2=T9)*(Teams1_Score)) -> 0 | AA9: =Y9-Z9 -> 5 | AB9: =3*V9+W9 -> 9
B10: =VLOOKUP($D10,TABLEAU_MATCHS[#All],2,FALSE) -> 2018-06-15 | C10: =VLOOKUP($D10,TABLEAU_MATCHS[#All],3,FALSE) -> 18:00:00 | D10: 3 | E10: ="Groupe "&VLOOKUP($I10,TABLEAU_TEAMS[[#All],[TEAM]:[GROUP_INITIAL_RANK]],2,FALSE) -> Groupe B | I10: =VLOOKUP($D10,TABLEAU_MATCHS[#All],4,FALSE) -> Maroc | J10: 0 | L10: =VLOOKUP($D10,TABLEAU_MATCHS[#All],5,FALSE) -> RI Iran | M10: 1 | Q10: 06480Russie | R10: 6480 | S10: 2 | T10: Russie | U10: =SUMPRODUCT((Teams1=T10)*(Teams1_Score<>""))+SUMPRODUCT((Teams2=T10)*(Teams2_Score<>"")) -> 3 | V10: =SUMPRODUCT((Teams1=T10)*(Teams1_Score>Teams2_Score))+SUMPRODUCT((Teams2=T10)*(Teams2_Score>Teams1_Score)) -> 2 | W10: =SUMPRODUCT((Teams1=T10)*(Teams1_Score=Teams2_Score)*(Teams1_Score<>""))+SUMPRODUCT((Teams2=T10)*(Teams2_Score=Teams1_Score)*(Teams2_Score<>"")) -> 0 | X10: =SUMPRODUCT((Teams1=T10)*(Teams1_Score<Teams2_Score))+SUMPRODUCT((Teams2=T10)*(Teams2_Score<Teams1_Score)) -> 1 | Y10: =SUMPRODUCT((Teams1=T10)*(Teams1_Score))+SUMPRODUCT((Teams2=T10)*(Teams2_Score)) -> 8 | Z10: =SUMPRODUCT((Teams1=T10)*(Teams2_Score))+SUMPRODUCT((Teams2=T10)*(Teams1_Score)) -> 4 | AA10: =Y10-Z10 -> 4 | AB10: =3*V10+W10 -> 6 | AE10: 2018-07-15 | AG10: =+IF(AI18<>"",IF(AH18>AN18,AG18,AM18),"Vainqueur 1") -> France | AH10: =AI10*10+AK10 -> 40 | AI10: 4 | AM10: =+IF(AI19<>"",IF(AH19>AN19,AG19,AM19),"Vainqueur 2") -> Croatie | AN10: =AO10*10+AQ10 -> 20 | AO10: 2 | AS10: =IF(AI10<>"",IF(AH10>AN10,AG10,AM10),"") -> France
B11: =VLOOKUP($D11,TABLEAU_MATCHS[#All],2,FALSE) -> 2018-06-15 | C11: =VLOOKUP($D11,TABLEAU_MATCHS[#All],3,FALSE) -> 21:00:00 | D11: 4 | E11: ="Groupe "&VLOOKUP($I11,TABLEAU_TEAMS[[#All],[TEAM]:[GROUP_INITIAL_RANK]],2,FALSE) -> Groupe B | I11: =VLOOKUP($D11,TABLEAU_MATCHS[#All],4,FALSE) -> Portugal | J11: 3 | L11: =VLOOKUP($D11,TABLEAU_MATCHS[#All],5,FALSE) -> Espagne | M11: 3 | Q11: 02520Arabie Saoudite | R11: 2520 | S11: 3 | T11: Arabie Saoudite | U11: =SUMPRODUCT((Teams1=T11)*(Teams1_Score<>""))+SUMPRODUCT((Teams2=T11)*(Teams2_Score<>"")) -> 3 | V11: =SUMPRODUCT((Teams1=T11)*(Teams1_Score>Teams2_Score))+SUMPRODUCT((Teams2=T11)*(Teams2_Score>Teams1_Score)) -> 1 | W11: =SUMPRODUCT((Teams1=T11)*(Teams1_Score=Teams2_Score)*(Teams1_Score<>""))+SUMPRODUCT((Teams2=T11)*(Teams2_Score=Teams1_Score)*(Teams2_Score<>"")) -> 0 | X11: =SUMPRODUCT((Teams1=T11)*(Teams1_Score<Teams2_Score))+SUMPRODUCT((Teams2=T11)*(Teams2_Score<Teams1_Score)) -> 2 | Y11: =SUMPRODUCT((Teams1=T11)*(Teams1_Score))+SUMPRODUCT((Teams2=T11)*(Teams2_Score)) -> 2 | Z11: =SUMPRODUCT((Teams1=T11)*(Teams2_Score))+SUMPRODUCT((Teams2=T11)*(Teams1_Score)) -> 7 | AA11: -5 | AB11: 3
B12: =VLOOKUP($D12,TABLEAU_MATCHS[#All],2,FALSE) -> 2018-06-16 | C12: =VLOOKUP($D12,TABLEAU_MATCHS[#All],3,FALSE) -> 13:00:00 | D12: 5 | E12: ="Groupe "&VLOOKUP($I12,TABLEAU_TEAMS[[#All],[TEAM]:[GROUP_INITIAL_RANK]],2,FALSE) -> Groupe C | I12: =VLOOKUP($D12,TABLEAU_MATCHS[#All],4,FALSE) -> France | J12: 2 | L12: =VLOOKUP($D12,TABLEAU_MATCHS[#All],5,FALSE) -> Australie | M12: 1 | Q12: -00380Egypte | R12: -380 | S12: 4 | T12: Egypte | U12: =SUMPRODUCT((Teams1=T12)*(Teams1_Score<>""))+SUMPRODUCT((Teams2=T12)*(Teams2_Score<>"")) -> 3 | V12: =SUMPRODUCT((Teams1=T12)*(Teams1_Score>Teams2_Score))+SUMPRODUCT((Teams2=T12)*(Teams2_Score>Teams1_Score)) -> 0 | W12: =SUMPRODUCT((Teams1=T12)*(Teams1_Score=Teams2_Score)*(Teams1_Score<>""))+SUMPRODUCT((Teams2=T12)*(Teams2_Score=Teams1_Score)*(Teams2_Score<>"")) -> 0 | X12: =SUMPRODUCT((Teams1=T12)*(Teams1_Score<Teams2_Score))+SUMPRODUCT((Teams2=T12)*(Teams2_Score<Teams1_Score)) -> 3 | Y12: =SUMPRODUCT((Teams1=T12)*(Teams1_Score))+SUMPRODUCT((Teams2=T12)*(Teams2_Score)) -> 2 | Z12: =SUMPRODUCT((Teams1=T12)*(Teams2_Score))+SUMPRODUCT((Teams2=T12)*(Teams1_Score)) -> 6 | AA12: -4 | AB12: 0 | AE12: Date | AF12: Petite Finale | AI12: Buts | AK12: Pen | AO12: Buts | AQ12: Pen
B13: =VLOOKUP($D13,TABLEAU_MATCHS[#All],2,FALSE) -> 2018-06-16 | C13: =VLOOKUP($D13,TABLEAU_MATCHS[#All],3,FALSE) -> 19:00:00 | D13: 6 | E13: ="Groupe "&VLOOKUP($I13,TABLEAU_TEAMS[[#All],[TEAM]:[GROUP_INITIAL_RANK]],2,FALSE) -> Groupe C | I13: =VLOOKUP($D13,TABLEAU_MATCHS[#All],4,FALSE) -> Pérou | J13: 0 | L13: =VLOOKUP($D13,TABLEAU_MATCHS[#All],5,FALSE) -> Danemark | M13: 1
B14: =VLOOKUP($D14,TABLEAU_MATCHS[#All],2,FALSE) -> 2018-06-16 | C14: =VLOOKUP($D14,TABLEAU_MATCHS[#All],3,FALSE) -> 16:00:00 | D14: 7 | E14: ="Groupe "&VLOOKUP($I14,TABLEAU_TEAMS[[#All],[TEAM]:[GROUP_INITIAL_RANK]],2,FALSE) -> Groupe D | I14: =VLOOKUP($D14,TABLEAU_MATCHS[#All],4,FALSE) -> Argentine | J14: 1 | L14: =VLOOKUP($D14,TABLEAU_MATCHS[#All],5,FALSE) -> Islande | M14: 1 | S14: Rg | T14: Groupe B | U14: MJ | V14: G | W14: N | X14: P | Y14: BP | Z14: BC | AA14: +/- | AB14: Pts | AE14: 2018-07-14 | AG14: =+IF(AI18<>"",IF(AH18>AN18,AM18,AG18),"Perdant 1") -> Belgique | AH14: =AI14*10+AK14 -> 20 | AI14: 2 | AM14: =+IF(AI19<>"",IF(AH19>AN19,AM19,AG19),"Perdant 2") -> Angleterre | AN14: =AO14*10+AQ14 -> 0 | AO14: 0
B15: =VLOOKUP($D15,TABLEAU_MATCHS[#All],2,FALSE) -> 2018-06-16 | C15: =VLOOKUP($D15,TABLEAU_MATCHS[#All],3,FALSE) -> 21:00:00 | D15: 8 | E15: ="Groupe "&VLOOKUP($I15,TABLEAU_TEAMS[[#All],[TEAM]:[GROUP_INITIAL_RANK]],2,FALSE) -> Groupe D | I15: =VLOOKUP($D15,TABLEAU_MATCHS[#All],4,FALSE) -> Croatie | J15: 2 | L15: =VLOOKUP($D15,TABLEAU_MATCHS[#All],5,FALSE) -> Nigeria | M15: 0 | Q15: =INDEX($Q66:$Q69,MATCH(SMALL(COUNTIF($Q66:$Q69,">="&$Q66:$Q69),ROW(INDIRECT("1:"&ROWS($Q66:$Q69)))),COUNTIF($Q66:$Q69,">="&$Q66:$Q69),0)) -> 05160Espagne | R15: =INDEX($R66:$R69,MATCH(SMALL(COUNTIF($Q66:$Q69,">="&$Q66:$Q69),ROW(INDIRECT("1:"&ROWS($Q66:$Q69)))),COUNTIF($Q66:$Q69,">="&$Q66:$Q69),0)) -> 5160 | S15: =INDEX($S66:$S69,MATCH(SMALL(COUNTIF($Q66:$Q69,">="&$Q66:$Q69),ROW(INDIRECT("1:"&ROWS($Q66:$Q69)))),COUNTIF($Q66:$Q69,">="&$Q66:$Q69),0)) -> 1 | T15: =INDEX($T66:$T69,MATCH(SMALL(COUNTIF($Q66:$Q69,">="&$Q66:$Q69),ROW(INDIRECT("1:"&ROWS($Q66:$Q69)))),COUNTIF($Q66:$Q69,">="&$Q66:$Q69),0)) -> Espagne | U15: =SUMPRODUCT((Teams1=T15)*(Teams1_Score<>""))+SUMPRODUCT((Teams2=T15)*(Teams2_Score<>"")) -> 3 | V15: =SUMPRODUCT((Teams1=T15)*(Teams1_Score>Teams2_Score))+SUMPRODUCT((Teams2=T15)*(Teams2_Score>Teams1_Score)) -> 1 | W15: =SUMPRODUCT((Teams1=T15)*(Teams1_Score=Teams2_Score)*(Teams1_Score<>""))+SUMPRODUCT((Teams2=T15)*(Teams2_Score=Teams1_Score)*(Teams2_Score<>"")) -> 2 | X15: =SUMPRODUCT((Teams1=T15)*(Teams1_Score<Teams2_Score))+SUMPRODUCT((Teams2=T15)*(Teams2_Score<Teams1_Score)) -> 0 | Y15: =SUMPRODUCT((Teams1=T15)*(Teams1_Score))+SUMPRODUCT((Teams2=T15)*(Teams2_Score)) -> 6 | Z15: =SUMPRODUCT((Teams1=T15)*(Teams2_Score))+SUMPRODUCT((Teams2=T15)*(Teams1_Score)) -> 5 | AA15: =Y15-Z15 -> 1 | AB15: =3*V15+W15 -> 5
B16: =VLOOKUP($D16,TABLEAU_MATCHS[#All],2,FALSE) -> 2018-06-17 | C16: =VLOOKUP($D16,TABLEAU_MATCHS[#All],3,FALSE) -> 16:00:00 | D16: 9 | E16: ="Groupe "&VLOOKUP($I16,TABLEAU_TEAMS[[#All],[TEAM]:[GROUP_INITIAL_RANK]],2,FALSE) -> Groupe E | I16: =VLOOKUP($D16,TABLEAU_MATCHS[#All],4,FALSE) -> Costa Rica | J16: 0 | L16: =VLOOKUP($D16,TABLEAU_MATCHS[#All],5,FALSE) -> Serbie | M16: 1 | Q16: 05150Portugal | R16: 5150 | S16: 2 | T16: Portugal | U16: =SUMPRODUCT((Teams1=T16)*(Teams1_Score<>""))+SUMPRODUCT((Teams2=T16)*(Teams2_Score<>"")) -> 3 | V16: =SUMPRODUCT((Teams1=T16)*(Teams1_Score>Teams2_Score))+SUMPRODUCT((Teams2=T16)*(Teams2_Score>Teams1_Score)) -> 1 | W16: =SUMPRODUCT((Teams1=T16)*(Teams1_Score=Teams2_Score)*(Teams1_Score<>""))+SUMPRODUCT((Teams2=T16)*(Teams2_Score=Teams1_Score)*(Teams2_Score<>"")) -> 2 | X16: =SUMPRODUCT((Teams1=T16)*(Teams1_Score<Teams2_Score))+SUMPRODUCT((Teams2=T16)*(Teams2_Score<Teams1_Score)) -> 0 | Y16: =SUMPRODUCT((Teams1=T16)*(Teams1_Score))+SUMPRODUCT((Teams2=T16)*(Teams2_Score)) -> 5 | Z16: =SUMPRODUCT((Teams1=T16)*(Teams2_Score))+SUMPRODUCT((Teams2=T16)*(Teams1_Score)) -> 4 | AA16: 1 | AB16: 5 | AE16: Date | AF16: Demi Finale | AI16: Buts | AK16: Pen | AO16: Buts | AQ16: Pen
B17: =VLOOKUP($D17,TABLEAU_MATCHS[#All],2,FALSE) -> 2018-06-17 | C17: =VLOOKUP($D17,TABLEAU_MATCHS[#All],3,FALSE) -> 21:00:00 | D17: 10 | E17: ="Groupe "&VLOOKUP($I17,TABLEAU_TEAMS[[#All],[TEAM]:[GROUP_INITIAL_RANK]],2,FALSE) -> Groupe E | I17: =VLOOKUP($D17,TABLEAU_MATCHS[#All],4,FALSE) -> Brésil | J17: 1 | L17: =VLOOKUP($D17,TABLEAU_MATCHS[#All],5,FALSE) -> Suisse | M17: 1 | Q17: 04020RI Iran | R17: 4020 | S17: 3 | T17: RI Iran | U17: =SUMPRODUCT((Teams1=T17)*(Teams1_Score<>""))+SUMPRODUCT((Teams2=T17)*(Teams2_Score<>"")) -> 3 | V17: =SUMPRODUCT((Teams1=T17)*(Teams1_Score>Teams2_Score))+SUMPRODUCT((Teams2=T17)*(Teams2_Score>Teams1_Score)) -> 1 | W17: =SUMPRODUCT((Teams1=T17)*(Teams1_Score=Teams2_Score)*(Teams1_Score<>""))+SUMPRODUCT((Teams2=T17)*(Teams2_Score=Teams1_Score)*(Teams2_Score<>"")) -> 1 | X17: =SUMPRODUCT((Teams1=T17)*(Teams1_Score<Teams2_Score))+SUMPRODUCT((Teams2=T17)*(Teams2_Score<Teams1_Score)) -> 1 | Y17: =SUMPRODUCT((Teams1=T17)*(Teams1_Score))+SUMPRODUCT((Teams2=T17)*(Teams2_Score)) -> 2 | Z17: =SUMPRODUCT((Teams1=T17)*(Teams2_Score))+SUMPRODUCT((Teams2=T17)*(Teams1_Score)) -> 2 | AA17: 0 | AB17: 4
B18: =VLOOKUP($D18,TABLEAU_MATCHS[#All],2,FALSE) -> 2018-06-17 | C18: =VLOOKUP($D18,TABLEAU_MATCHS[#All],3,FALSE) -> 18:00:00 | D18: 11 | E18: ="Groupe "&VLOOKUP($I18,TABLEAU_TEAMS[[#All],[TEAM]:[GROUP_INITIAL_RANK]],2,FALSE) -> Groupe F | I18: =VLOOKUP($D18,TABLEAU_MATCHS[#All],4,FALSE) -> Allemagne | J18: 0 | L18: =VLOOKUP($D18,TABLEAU_MATCHS[#All],5,FALSE) -> Mexique | M18: 1 | Q18: 00820Maroc | R18: 820 | S18: 4 | T18: Maroc | U18: =SUMPRODUCT((Teams1=T18)*(Teams1_Score<>""))+SUMPRODUCT((Teams2=T18)*(Teams2_Score<>"")) -> 3 | V18: =SUMPRODUCT((Teams1=T18)*(Teams1_Score>Teams2_Score))+SUMPRODUCT((Teams2=T18)*(Teams2_Score>Teams1_Score)) -> 0 | W18: =SUMPRODUCT((Teams1=T18)*(Teams1_Score=Teams2_Score)*(Teams1_Score<>""))+SUMPRODUCT((Teams2=T18)*(Teams2_Score=Teams1_Score)*(Teams2_Score<>"")) -> 1 | X18: =SUMPRODUCT((Teams1=T18)*(Teams1_Score<Teams2_Score))+SUMPRODUCT((Teams2=T18)*(Teams2_Score<Teams1_Score)) -> 2 | Y18: =SUMPRODUCT((Teams1=T18)*(Teams1_Score))+SUMPRODUCT((Teams2=T18)*(Teams2_Score)) -> 2 | Z18: =SUMPRODUCT((Teams1=T18)*(Teams2_Score))+SUMPRODUCT((Teams2=T18)*(Teams1_Score)) -> 4 | AA18: -2 | AB18: 1 | AE18: 2018-07-10 | AF18: 1 | AG18: =+IF(AI23<>"",IF(AH23>AN23,AG23,AM23),"Vainqueur A") -> France | AH18: =AI18*10+AK18 -> 10 | AI18: 1 | AK18: 0 | AM18: =+IF(AI25<>"",IF(AH25>AN25,AG25,AM25),"Vainqueur C") -> Belgique | AN18: =AO18*10+AQ18 -> 0
B19: =VLOOKUP($D19,TABLEAU_MATCHS[#All],2,FALSE) -> 2018-06-18 | C19: =VLOOKUP($D19,TABLEAU_MATCHS[#All],3,FALSE) -> 15:00:00 | D19: 12 | E19: ="Groupe "&VLOOKUP($I19,TABLEAU_TEAMS[[#All],[TEAM]:[GROUP_INITIAL_RANK]],2,FALSE) -> Groupe F | I19: =VLOOKUP($D19,TABLEAU_MATCHS[#All],4,FALSE) -> Suède | J19: 1 | L19: =VLOOKUP($D19,TABLEAU_MATCHS[#All],5,FALSE) -> République de Corée | M19: 0 | AE19: 2018-07-11 | AF19: 2 | AG19: =+IF(AI24<>"",IF(AH24>AN24,AG24,AM24),"Vainqueur B") -> Croatie | AH19: 21 | AI19: 2 | AK19: 1 | AM19: =+IF(AI26<>"",IF(AH26>AN26,AG26,AM26),"Vainqueur D") -> Angleterre | AN19: 0
B20: =VLOOKUP($D20,TABLEAU_MATCHS[#All],2,FALSE) -> 2018-06-18 | C20: =VLOOKUP($D20,TABLEAU_MATCHS[#All],3,FALSE) -> 18:00:00 | D20: 13 | E20: ="Groupe "&VLOOKUP($I20,TABLEAU_TEAMS[[#All],[TEAM]:[GROUP_INITIAL_RANK]],2,FALSE) -> Groupe G | I20: =VLOOKUP($D20,TABLEAU_MATCHS[#All],4,FALSE) -> Belgique | J20: 3 | L20: =VLOOKUP($D20,TABLEAU_MATCHS[#All],5,FALSE) -> Panama | M20: 0 | S20: Rg | T20: Groupe C | U20: MJ | V20: G | W20: N | X20: P | Y20: BP | Z20: BC | AA20: +/- | AB20: Pts
B21: =VLOOKUP($D21,TABLEAU_MATCHS[#All],2,FALSE) -> 2018-06-18 | C21: =VLOOKUP($D21,TABLEAU_MATCHS[#All],3,FALSE) -> 21:00:00 | D21: 14 | E21: ="Groupe "&VLOOKUP($I21,TABLEAU_TEAMS[[#All],[TEAM]:[GROUP_INITIAL_RANK]],2,FALSE) -> Groupe G | I21: =VLOOKUP($D21,TABLEAU_MATCHS[#All],4,FALSE) -> Tunisie | J21: 1 | L21: =VLOOKUP($D21,TABLEAU_MATCHS[#All],5,FALSE) -> Angleterre | M21: 2 | Q21: =INDEX($Q72:$Q75,MATCH(SMALL(COUNTIF($Q72:$Q75,">="&$Q72:$Q75),ROW(INDIRECT("1:"&ROWS($Q72:$Q75)))),COUNTIF($Q72:$Q75,">="&$Q72:$Q75),0)) -> 07230France | R21: =INDEX($R72:$R75,MATCH(SMALL(COUNTIF($Q72:$Q75,">="&$Q72:$Q75),ROW(INDIRECT("1:"&ROWS($Q72:$Q75)))),COUNTIF($Q72:$Q75,">="&$Q72:$Q75),0)) -> 7230 | S21: =INDEX($S72:$S75,MATCH(SMALL(COUNTIF($Q72:$Q75,">="&$Q72:$Q75),ROW(INDIRECT("1:"&ROWS($Q72:$Q75)))),COUNTIF($Q72:$Q75,">="&$Q72:$Q75),0)) -> 1 | T21: =INDEX($T72:$T75,MATCH(SMALL(COUNTIF($Q72:$Q75,">="&$Q72:$Q75),ROW(INDIRECT("1:"&ROWS($Q72:$Q75)))),COUNTIF($Q72:$Q75,">="&$Q72:$Q75),0)) -> France | U21: =SUMPRODUCT((Teams1=T21)*(Teams1_Score<>""))+SUMPRODUCT((Teams2=T21)*(Teams2_Score<>"")) -> 3 | V21: =SUMPRODUCT((Teams1=T21)*(Teams1_Score>Teams2_Score))+SUMPRODUCT((Teams2=T21)*(Teams2_Score>Teams1_Score)) -> 2 | W21: =SUMPRODUCT((Teams1=T21)*(Teams1_Score=Teams2_Score)*(Teams1_Score<>""))+SUMPRODUCT((Teams2=T21)*(Teams2_Score=Teams1_Score)*(Teams2_Score<>"")) -> 1 | X21: =SUMPRODUCT((Teams1=T21)*(Teams1_Score<Teams2_Score))+SUMPRODUCT((Teams2=T21)*(Teams2_Score<Teams1_Score)) -> 0 | Y21: =SUMPRODUCT((Teams1=T21)*(Teams1_Score))+SUMPRODUCT((Teams2=T21)*(Teams2_Score)) -> 3 | Z21: =SUMPRODUCT((Teams1=T21)*(Teams2_Score))+SUMPRODUCT((Teams2=T21)*(Teams1_Score)) -> 1 | AA21: =Y21-Z21 -> 2 | AB21: =3*V21+W21 -> 7 | AE21: Date | AF21: Quart de Finale | AI21: Buts | AK21: Pen | AO21: Buts | AQ21: Pen
B22: =VLOOKUP($D22,TABLEAU_MATCHS[#All],2,FALSE) -> 2018-06-19 | C22: =VLOOKUP($D22,TABLEAU_MATCHS[#All],3,FALSE) -> 15:00:00 | D22: 15 | E22: ="Groupe "&VLOOKUP($I22,TABLEAU_TEAMS[[#All],[TEAM]:[GROUP_INITIAL_RANK]],2,FALSE) -> Groupe H | I22: =VLOOKUP($D22,TABLEAU_MATCHS[#All],4,FALSE) -> Colombie | J22: 1 | L22: =VLOOKUP($D22,TABLEAU_MATCHS[#All],5,FALSE) -> Japon | M22: 2 | Q22: 05120Danemark | R22: 5120 | S22: 2 | T22: Danemark | U22: =SUMPRODUCT((Teams1=T22)*(Teams1_Score<>""))+SUMPRODUCT((Teams2=T22)*(Teams2_Score<>"")) -> 3 | V22: =SUMPRODUCT((Teams1=T22)*(Teams1_Score>Teams2_Score))+SUMPRODUCT((Teams2=T22)*(Teams2_Score>Teams1_Score)) -> 1 | W22: =SUMPRODUCT((Teams1=T22)*(Teams1_Score=Teams2_Score)*(Teams1_Score<>""))+SUMPRODUCT((Teams2=T22)*(Teams2_Score=Teams1_Score)*(Teams2_Score<>"")) -> 2 | X22: =SUMPRODUCT((Teams1=T22)*(Teams1_Score<Teams2_Score))+SUMPRODUCT((Teams2=T22)*(Teams2_Score<Teams1_Score)) -> 0 | Y22: =SUMPRODUCT((Teams1=T22)*(Teams1_Score))+SUMPRODUCT((Teams2=T22)*(Teams2_Score)) -> 2 | Z22: =SUMPRODUCT((Teams1=T22)*(Teams2_Score))+SUMPRODUCT((Teams2=T22)*(Teams1_Score)) -> 1 | AA22: 1 | AB22: 5
B23: =VLOOKUP($D23,TABLEAU_MATCHS[#All],2,FALSE) -> 2018-06-19 | C23: =VLOOKUP($D23,TABLEAU_MATCHS[#All],3,FALSE) -> 18:00:00 | D23: 16 | E23: ="Groupe "&VLOOKUP($I23,TABLEAU_TEAMS[[#All],[TEAM]:[GROUP_INITIAL_RANK]],2,FALSE) -> Groupe H | I23: =VLOOKUP($D23,TABLEAU_MATCHS[#All],4,FALSE) -> Pologne | J23: 1 | L23: =VLOOKUP($D23,TABLEAU_MATCHS[#All],5,FALSE) -> Sénégal | M23: 2 | Q23: 03020Pérou | R23: 3020 | S23: 3 | T23: Pérou | U23: =SUMPRODUCT((Teams1=T23)*(Teams1_Score<>""))+SUMPRODUCT((Teams2=T23)*(Teams2_Score<>"")) -> 3 | V23: =SUMPRODUCT((Teams1=T23)*(Teams1_Score>Teams2_Score))+SUMPRODUCT((Teams2=T23)*(Teams2_Score>Teams1_Score)) -> 1 | W23: =SUMPRODUCT((Teams1=T23)*(Teams1_Score=Teams2_Score)*(Teams1_Score<>""))+SUMPRODUCT((Teams2=T23)*(Teams2_Score=Teams1_Score)*(Teams2_Score<>"")) -> 0 | X23: =SUMPRODUCT((Teams1=T23)*(Teams1_Score<Teams2_Score))+SUMPRODUCT((Teams2=T23)*(Teams2_Score<Teams1_Score)) -> 2 | Y23: =SUMPRODUCT((Teams1=T23)*(Teams1_Score))+SUMPRODUCT((Teams2=T23)*(Teams2_Score)) -> 2 | Z23: =SUMPRODUCT((Teams1=T23)*(Teams2_Score))+SUMPRODUCT((Teams2=T23)*(Teams1_Score)) -> 2 | AA23: 0 | AB23: 3 | AE23: 2018-07-06 | AF23: A | AG23: =+IF(AI30<>"",IF(AH30>AN30,AG30,AM30),"Vainqueur 1") -> Uruguay | AH23: =AI23*10+AK23 -> 0 | AI23: 0 | AM23: =+IF(AI32<>"",IF(AH32>AN32,AG32,AM32),"Vainqueur 3") -> France | AN23: =AO23*10+AQ23 -> 20 | AO23: 2
B24: =VLOOKUP($D24,TABLEAU_MATCHS[#All],2,FALSE) -> 2018-06-19 | C24: =VLOOKUP($D24,TABLEAU_MATCHS[#All],3,FALSE) -> 21:00:00 | D24: 17 | E24: ="Groupe "&VLOOKUP($I24,TABLEAU_TEAMS[[#All],[TEAM]:[GROUP_INITIAL_RANK]],2,FALSE) -> Groupe A | I24: =VLOOKUP($D24,TABLEAU_MATCHS[#All],4,FALSE) -> Russie | J24: 3 | L24: =VLOOKUP($D24,TABLEAU_MATCHS[#All],5,FALSE) -> Egypte | M24: 1 | Q24: 00720Australie | R24: 720 | S24: 4 | T24: Australie | U24: =SUMPRODUCT((Teams1=T24)*(Teams1_Score<>""))+SUMPRODUCT((Teams2=T24)*(Teams2_Score<>"")) -> 3 | V24: =SUMPRODUCT((Teams1=T24)*(Teams1_Score>Teams2_Score))+SUMPRODUCT((Teams2=T24)*(Teams2_Score>Teams1_Score)) -> 0 | W24: =SUMPRODUCT((Teams1=T24)*(Teams1_Score=Teams2_Score)*(Teams1_Score<>""))+SUMPRODUCT((Teams2=T24)*(Teams2_Score=Teams1_Score)*(Teams2_Score<>"")) -> 1 | X24: =SUMPRODUCT((Teams1=T24)*(Teams1_Score<Teams2_Score))+SUMPRODUCT((Teams2=T24)*(Teams2_Score<Teams1_Score)) -> 2 | Y24: =SUMPRODUCT((Teams1=T24)*(Teams1_Score))+SUMPRODUCT((Teams2=T24)*(Teams2_Score)) -> 2 | Z24: =SUMPRODUCT((Teams1=T24)*(Teams2_Score))+SUMPRODUCT((Teams2=T24)*(Teams1_Score)) -> 5 | AA24: -3 | AB24: 1 | AE24: 2018-07-07 | AF24: B | AG24: =+IF(AI31<>"",IF(AH31>AN31,AG31,AM31),"Vainqueur 2") -> Russie | AH24: 23 | AI24: 2 | AK24: 3 | AM24: =+IF(AI33<>"",IF(AH33>AN33,AG33,AM33),"Vainqueur 4") -> Croatie | AN24: 24 | AO24: 2 | AQ24: 4
B25: =VLOOKUP($D25,TABLEAU_MATCHS[#All],2,FALSE) -> 2018-06-20 | C25: =VLOOKUP($D25,TABLEAU_MATCHS[#All],3,FALSE) -> 18:00:00 | D25: 18 | E25: ="Groupe "&VLOOKUP($I25,TABLEAU_TEAMS[[#All],[TEAM]:[GROUP_INITIAL_RANK]],2,FALSE) -> Groupe A | I25: =VLOOKUP($D25,TABLEAU_MATCHS[#All],4,FALSE) -> Uruguay | J25: 1 | L25: =VLOOKUP($D25,TABLEAU_MATCHS[#All],5,FALSE) -> Arabie Saoudite | M25: 0 | AE25: 2018-07-06 | AF25: C | AG25: =+IF(AI34<>"",IF(AH34>AN34,AG34,AM34),"Vainqueur 5") -> Brésil | AH25: 10 | AI25: 1 | AM25: =+IF(AI36<>"",IF(AH36>AN36,AG36,AM36),"Vainqueur 7") -> Belgique | AN25: 20 | AO25: 2
B26: =VLOOKUP($D26,TABLEAU_MATCHS[#All],2,FALSE) -> 2018-06-20 | C26: =VLOOKUP($D26,TABLEAU_MATCHS[#All],3,FALSE) -> 15:00:00 | D26: 19 | E26: ="Groupe "&VLOOKUP($I26,TABLEAU_TEAMS[[#All],[TEAM]:[GROUP_INITIAL_RANK]],2,FALSE) -> Groupe B | I26: =VLOOKUP($D26,TABLEAU_MATCHS[#All],4,FALSE) -> Portugal | J26: 1 | L26: =VLOOKUP($D26,TABLEAU_MATCHS[#All],5,FALSE) -> Maroc | M26: 0 | S26: Rg | T26: Groupe D | U26: MJ | V26: G | W26: N | X26: P | Y26: BP | Z26: BC | AA26: +/- | AB26: Pts | AE26: 2018-07-07 | AF26: D | AG26: =+IF(AI35<>"",IF(AH35>AN35,AG35,AM35),"Vainqueur 6") -> Suède | AH26: 0 | AI26: 0 | AM26: =+IF(AI37<>"",IF(AH37>AN37,AG37,AM37),"Vainqueur 8") -> Angleterre | AN26: 20 | AO26: 2
B27: =VLOOKUP($D27,TABLEAU_MATCHS[#All],2,FALSE) -> 2018-06-20 | C27: =VLOOKUP($D27,TABLEAU_MATCHS[#All],3,FALSE) -> 21:00:00 | D27: 20 | E27: ="Groupe "&VLOOKUP($I27,TABLEAU_TEAMS[[#All],[TEAM]:[GROUP_INITIAL_RANK]],2,FALSE) -> Groupe B | I27: =VLOOKUP($D27,TABLEAU_MATCHS[#All],4,FALSE) -> RI Iran | J27: 0 | L27: =VLOOKUP($D27,TABLEAU_MATCHS[#All],5,FALSE) -> Espagne | M27: 1 | Q27: =INDEX($Q78:$Q81,MATCH(SMALL(COUNTIF($Q78:$Q81,">="&$Q78:$Q81),ROW(INDIRECT("1:"&ROWS($Q78:$Q81)))),COUNTIF($Q78:$Q81,">="&$Q78:$Q81),0)) -> 09670Croatie | R27: =INDEX($R78:$R81,MATCH(SMALL(COUNTIF($Q78:$Q81,">="&$Q78:$Q81),ROW(INDIRECT("1:"&ROWS($Q78:$Q81)))),COUNTIF($Q78:$Q81,">="&$Q78:$Q81),0)) -> 9670 | S27: =INDEX($S78:$S81,MATCH(SMALL(COUNTIF($Q78:$Q81,">="&$Q78:$Q81),ROW(INDIRECT("1:"&ROWS($Q78:$Q81)))),COUNTIF($Q78:$Q81,">="&$Q78:$Q81),0)) -> 1 | T27: =INDEX($T78:$T81,MATCH(SMALL(COUNTIF($Q78:$Q81,">="&$Q78:$Q81),ROW(INDIRECT("1:"&ROWS($Q78:$Q81)))),COUNTIF($Q78:$Q81,">="&$Q78:$Q81),0)) -> Croatie | U27: =SUMPRODUCT((Teams1=T27)*(Teams1_Score<>""))+SUMPRODUCT((Teams2=T27)*(Teams2_Score<>"")) -> 3 | V27: =SUMPRODUCT((Teams1=T27)*(Teams1_Score>Teams2_Score))+SUMPRODUCT((Teams2=T27)*(Teams2_Score>Teams1_Score)) -> 3 | W27: =SUMPRODUCT((Teams1=T27)*(Teams1_Score=Teams2_Score)*(Teams1_Score<>""))+SUMPRODUCT((Teams2=T27)*(Teams2_Score=Teams1_Score)*(Teams2_Score<>"")) -> 0 | X27: =SUMPRODUCT((Teams1=T27)*(Teams1_Score<Teams2_Score))+SUMPRODUCT((Teams2=T27)*(Teams2_Score<Teams1_Score)) -> 0 | Y27: =SUMPRODUCT((Teams1=T27)*(Teams1_Score))+SUMPRODUCT((Teams2=T27)*(Teams2_Score)) -> 7 | Z27: =SUMPRODUCT((Teams1=T27)*(Teams2_Score))+SUMPRODUCT((Teams2=T27)*(Teams1_Score)) -> 1 | AA27: =Y27-Z27 -> 6 | AB27: =3*V27+W27 -> 9
B28: =VLOOKUP($D28,TABLEAU_MATCHS[#All],2,FALSE) -> 2018-06-21 | C28: =VLOOKUP($D28,TABLEAU_MATCHS[#All],3,FALSE) -> 16:00:00 | D28: 21 | E28: ="Groupe "&VLOOKUP($I28,TABLEAU_TEAMS[[#All],[TEAM]:[GROUP_INITIAL_RANK]],2,FALSE) -> Groupe C | I28: =VLOOKUP($D28,TABLEAU_MATCHS[#All],4,FALSE) -> Danemark | J28: 1 | L28: =VLOOKUP($D28,TABLEAU_MATCHS[#All],5,FALSE) -> Australie | M28: 1 | Q28: 03830Argentine | R28: 3830 | S28: 2 | T28: Argentine | U28: =SUMPRODUCT((Teams1=T28)*(Teams1_Score<>""))+SUMPRODUCT((Teams2=T28)*(Teams2_Score<>"")) -> 3 | V28: =SUMPRODUCT((Teams1=T28)*(Teams1_Score>Teams2_Score))+SUMPRODUCT((Teams2=T28)*(Teams2_Score>Teams1_Score)) -> 1 | W28: =SUMPRODUCT((Teams1=T28)*(Teams1_Score=Teams2_Score)*(Teams1_Score<>""))+SUMPRODUCT((Teams2=T28)*(Teams2_Score=Teams1_Score)*(Teams2_Score<>"")) -> 1 | X28: =SUMPRODUCT((Teams1=T28)*(Teams1_Score<Teams2_Score))+SUMPRODUCT((Teams2=T28)*(Teams2_Score<Teams1_Score)) -> 1 | Y28: =SUMPRODUCT((Teams1=T28)*(Teams1_Score))+SUMPRODUCT((Teams2=T28)*(Teams2_Score)) -> 3 | Z28: =SUMPRODUCT((Teams1=T28)*(Teams2_Score))+SUMPRODUCT((Teams2=T28)*(Teams1_Score)) -> 5 | AA28: -2 | AB28: 4 | AE28: Date | AF28: Huitième de Finale | AI28: Buts | AK28: Pen | AO28: Buts | AQ28: Pen
B29: =VLOOKUP($D29,TABLEAU_MATCHS[#All],2,FALSE) -> 2018-06-21 | C29: =VLOOKUP($D29,TABLEAU_MATCHS[#All],3,FALSE) -> 20:00:00 | D29: 22 | E29: ="Groupe "&VLOOKUP($I29,TABLEAU_TEAMS[[#All],[TEAM]:[GROUP_INITIAL_RANK]],2,FALSE) -> Groupe C | I29: =VLOOKUP($D29,TABLEAU_MATCHS[#All],4,FALSE) -> France | J29: 1 | L29: =VLOOKUP($D29,TABLEAU_MATCHS[#All],5,FALSE) -> Pérou | M29: 0 | Q29: 02930Nigeria | R29: 2930 | S29: 3 | T29: Nigeria | U29: =SUMPRODUCT((Teams1=T29)*(Teams1_Score<>""))+SUMPRODUCT((Teams2=T29)*(Teams2_Score<>"")) -> 3 | V29: =SUMPRODUCT((Teams1=T29)*(Teams1_Score>Teams2_Score))+SUMPRODUCT((Teams2=T29)*(Teams2_Score>Teams1_Score)) -> 1 | W29: =SUMPRODUCT((Teams1=T29)*(Teams1_Score=Teams2_Score)*(Teams1_Score<>""))+SUMPRODUCT((Teams2=T29)*(Teams2_Score=Teams1_Score)*(Teams2_Score<>"")) -> 0 | X29: =SUMPRODUCT((Teams1=T29)*(Teams1_Score<Teams2_Score))+SUMPRODUCT((Teams2=T29)*(Teams2_Score<Teams1_Score)) -> 2 | Y29: =SUMPRODUCT((Teams1=T29)*(Teams1_Score))+SUMPRODUCT((Teams2=T29)*(Teams2_Score)) -> 3 | Z29: =SUMPRODUCT((Teams1=T29)*(Teams2_Score))+SUMPRODUCT((Teams2=T29)*(Teams1_Score)) -> 4 | AA29: -1 | AB29: 3
B30: =VLOOKUP($D30,TABLEAU_MATCHS[#All],2,FALSE) -> 2018-06-21 | C30: =VLOOKUP($D30,TABLEAU_MATCHS[#All],3,FALSE) -> 21:00:00 | D30: 23 | E30: ="Groupe "&VLOOKUP($I30,TABLEAU_TEAMS[[#All],[TEAM]:[GROUP_INITIAL_RANK]],2,FALSE) -> Groupe D | I30: =VLOOKUP($D30,TABLEAU_MATCHS[#All],4,FALSE) -> Argentine | J30: 0 | L30: =VLOOKUP($D30,TABLEAU_MATCHS[#All],5,FALSE) -> Croatie | M30: 3 | Q30: 00720Islande | R30: 720 | S30: 4 | T30: Islande | U30: =SUMPRODUCT((Teams1=T30)*(Teams1_Score<>""))+SUMPRODUCT((Teams2=T30)*(Teams2_Score<>"")) -> 3 | V30: =SUMPRODUCT((Teams1=T30)*(Teams1_Score>Teams2_Score))+SUMPRODUCT((Teams2=T30)*(Teams2_Score>Teams1_Score)) -> 0 | W30: =SUMPRODUCT((Teams1=T30)*(Teams1_Score=Teams2_Score)*(Teams1_Score<>""))+SUMPRODUCT((Teams2=T30)*(Teams2_Score=Teams1_Score)*(Teams2_Score<>"")) -> 1 | X30: =SUMPRODUCT((Teams1=T30)*(Teams1_Score<Teams2_Score))+SUMPRODUCT((Teams2=T30)*(Teams2_Score<Teams1_Score)) -> 2 | Y30: =SUMPRODUCT((Teams1=T30)*(Teams1_Score))+SUMPRODUCT((Teams2=T30)*(Teams2_Score)) -> 2 | Z30: =SUMPRODUCT((Teams1=T30)*(Teams2_Score))+SUMPRODUCT((Teams2=T30)*(Teams1_Score)) -> 5 | AA30: -3 | AB30: 1 | AE30: 2018-06-30 | AF30: 1 | AG30: =IF(SUM(U9:U12)=0,"1er Groupe A",IF(COUNTIF(S9:S12,1)=1,VLOOKUP(1,S9:T12,2,FALSE),IF(COUNTIF(S9:S12,1)>=2,"Tirage au Sort A1"))) -> Uruguay | AH30: =AI30*10+AK30 -> 20 | AI30: 2 | AM30: =IF(SUM(U15:U18)=0,"2nd Groupe B",IF(OR(COUNTIF(S15:S18,1)>1,COUNTIF(S15:S18,2)>1),"Tirage au sort B2",VLOOKUP(2,S15:T18,2,FALSE))) -> Portugal | AN30: =AO30*10+AQ30 -> 10 | AO30: 1
B31: =VLOOKUP($D31,TABLEAU_MATCHS[#All],2,FALSE) -> 2018-06-22 | C31: =VLOOKUP($D31,TABLEAU_MATCHS[#All],3,FALSE) -> 18:00:00 | D31: 24 | E31: ="Groupe "&VLOOKUP($I31,TABLEAU_TEAMS[[#All],[TEAM]:[GROUP_INITIAL_RANK]],2,FALSE) -> Groupe D | I31: =VLOOKUP($D31,TABLEAU_MATCHS[#All],4,FALSE) -> Nigeria | J31: 2 | L31: =VLOOKUP($D31,TABLEAU_MATCHS[#All],5,FALSE) -> Islande | M31: 0 | AE31: 2018-07-01 | AF31: 2 | AG31: =IF(SUM(U15:U18)=0,"1er Groupe B",IF(COUNTIF(S15:S18,1)=1,VLOOKUP(1,S15:T18,2,FALSE),IF(COUNTIF(S15:S18,1)>=2,"Tirage au Sort B1"))) -> Espagne | AH31: =AI31*10+AK31 -> 13 | AI31: 1 | AK31: 3 | AM31: =IF(SUM(U9:U12)=0,"2nd Groupe A",IF(OR(COUNTIF(S9:S12,1)>1,COUNTIF(S9:S12,2)>1),"Tirage au sort A2",VLOOKUP(2,S9:T12,2,FALSE))) -> Russie | AN31: 14 | AO31: 1 | AQ31: 4
B32: =VLOOKUP($D32,TABLEAU_MATCHS[#All],2,FALSE) -> 2018-06-22 | C32: =VLOOKUP($D32,TABLEAU_MATCHS[#All],3,FALSE) -> 15:00:00 | D32: 25 | E32: ="Groupe "&VLOOKUP($I32,TABLEAU_TEAMS[[#All],[TEAM]:[GROUP_INITIAL_RANK]],2,FALSE) -> Groupe E | I32: =VLOOKUP($D32,TABLEAU_MATCHS[#All],4,FALSE) -> Brésil | J32: 2 | L32: =VLOOKUP($D32,TABLEAU_MATCHS[#All],5,FALSE) -> Costa Rica | M32: 0 | S32: Rg | T32: Groupe E | U32: MJ | V32: G | W32: N | X32: P | Y32: BP | Z32: BC | AA32: +/- | AB32: Pts | AE32: 2017-06-30 | AF32: 3 | AG32: =IF(SUM(U21:U24)=0,"1er Groupe C",IF(COUNTIF(S21:S24,1)=1,VLOOKUP(1,S21:T24,2,FALSE),IF(COUNTIF(S21:S24,1)>=2,"Tirage au Sort C1"))) -> France | AH32: 40 | AI32: 4 | AM32: =IF(SUM(U27:U30)=0,"2nd Groupe D",IF(OR(COUNTIF(S27:S30,1)>1,COUNTIF(S27:S30,2)>1),"Tirage au sort D2",VLOOKUP(2,S27:T30,2,FALSE))) -> Argentine | AN32: 30 | AO32: 3
B33: =VLOOKUP($D33,TABLEAU_MATCHS[#All],2,FALSE) -> 2018-06-22 | C33: =VLOOKUP($D33,TABLEAU_MATCHS[#All],3,FALSE) -> 20:00:00 | D33: 26 | E33: ="Groupe "&VLOOKUP($I33,TABLEAU_TEAMS[[#All],[TEAM]:[GROUP_INITIAL_RANK]],2,FALSE) -> Groupe E | I33: =VLOOKUP($D33,TABLEAU_MATCHS[#All],4,FALSE) -> Serbie | J33: 1 | L33: =VLOOKUP($D33,TABLEAU_MATCHS[#All],5,FALSE) -> Suisse | M33: 2 | Q33: =INDEX($Q84:$Q87,MATCH(SMALL(COUNTIF($Q84:$Q87,">="&$Q84:$Q87),ROW(INDIRECT("1:"&ROWS($Q84:$Q87)))),COUNTIF($Q84:$Q87,">="&$Q84:$Q87),0)) -> 07450Brésil | R33: =INDEX($R84:$R87,MATCH(SMALL(COUNTIF($Q84:$Q87,">="&$Q84:$Q87),ROW(INDIRECT("1:"&ROWS($Q84:$Q87)))),COUNTIF($Q84:$Q87,">="&$Q84:$Q87),0)) -> 7450 | S33: =INDEX($S84:$S87,MATCH(SMALL(COUNTIF($Q84:$Q87,">="&$Q84:$Q87),ROW(INDIRECT("1:"&ROWS($Q84:$Q87)))),COUNTIF($Q84:$Q87,">="&$Q84:$Q87),0)) -> 1 | T33: =INDEX($T84:$T87,MATCH(SMALL(COUNTIF($Q84:$Q87,">="&$Q84:$Q87),ROW(INDIRECT("1:"&ROWS($Q84:$Q87)))),COUNTIF($Q84:$Q87,">="&$Q84:$Q87),0)) -> Brésil | U33: =SUMPRODUCT((Teams1=T33)*(Teams1_Score<>""))+SUMPRODUCT((Teams2=T33)*(Teams2_Score<>"")) -> 3 | V33: =SUMPRODUCT((Teams1=T33)*(Teams1_Score>Teams2_Score))+SUMPRODUCT((Teams2=T33)*(Teams2_Score>Teams1_Score)) -> 2 | W33: =SUMPRODUCT((Teams1=T33)*(Teams1_Score=Teams2_Score)*(Teams1_Score<>""))+SUMPRODUCT((Teams2=T33)*(Teams2_Score=Teams1_Score)*(Teams2_Score<>"")) -> 1 | X33: =SUMPRODUCT((Teams1=T33)*(Teams1_Score<Teams2_Score))+SUMPRODUCT((Teams2=T33)*(Teams2_Score<Teams1_Score)) -> 0 | Y33: =SUMPRODUCT((Teams1=T33)*(Teams1_Score))+SUMPRODUCT((Teams2=T33)*(Teams2_Score)) -> 5 | Z33: =SUMPRODUCT((Teams1=T33)*(Teams2_Score))+SUMPRODUCT((Teams2=T33)*(Teams1_Score)) -> 1 | AA33: =Y33-Z33 -> 4 | AB33: =3*V33+W33 -> 7 | AE33: 2018-07-01 | AF33: 4 | AG33: =IF(SUM(U27:U30)=0,"1er Groupe D",IF(COUNTIF(S27:S30,1)=1,VLOOKUP(1,S27:T30,2,FALSE),IF(COUNTIF(S27:S30,1)>=2,"Tirage au Sort D1"))) -> Croatie | AH33: 13 | AI33: 1 | AK33: 3 | AM33: =IF(SUM(U21:U24)=0,"2nd Groupe C",IF(OR(COUNTIF(S21:S24,1)>1,COUNTIF(S21:S24,2)>1),"Tirage au sort C2",VLOOKUP(2,S21:T24,2,FALSE))) -> Danemark | AN33: 12 | AO33: 1 | AQ33: 2
B34: =VLOOKUP($D34,TABLEAU_MATCHS[#All],2,FALSE) -> 2018-06-23 | C34: =VLOOKUP($D34,TABLEAU_MATCHS[#All],3,FALSE) -> 18:00:00 | D34: 27 | E34: ="Groupe "&VLOOKUP($I34,TABLEAU_TEAMS[[#All],[TEAM]:[GROUP_INITIAL_RANK]],2,FALSE) -> Groupe F | I34: =VLOOKUP($D34,TABLEAU_MATCHS[#All],4,FALSE) -> République de Corée | J34: 1 | L34: =VLOOKUP($D34,TABLEAU_MATCHS[#All],5,FALSE) -> Mexique | M34: 2 | Q34: 05150Suisse | R34: 5150 | S34: 2 | T34: Suisse | U34: =SUMPRODUCT((Teams1=T34)*(Teams1_Score<>""))+SUMPRODUCT((Teams2=T34)*(Teams2_Score<>"")) -> 3 | V34: =SUMPRODUCT((Teams1=T34)*(Teams1_Score>Teams2_Score))+SUMPRODUCT((Teams2=T34)*(Teams2_Score>Teams1_Score)) -> 1 | W34: =SUMPRODUCT((Teams1=T34)*(Teams1_Score=Teams2_Score)*(Teams1_Score<>""))+SUMPRODUCT((Teams2=T34)*(Teams2_Score=Teams1_Score)*(Teams2_Score<>"")) -> 2 | X34: =SUMPRODUCT((Teams1=T34)*(Teams1_Score<Teams2_Score))+SUMPRODUCT((Teams2=T34)*(Teams2_Score<Teams1_Score)) -> 0 | Y34: =SUMPRODUCT((Teams1=T34)*(Teams1_Score))+SUMPRODUCT((Teams2=T34)*(Teams2_Score)) -> 5 | Z34: =SUMPRODUCT((Teams1=T34)*(Teams2_Score))+SUMPRODUCT((Teams2=T34)*(Teams1_Score)) -> 4 | AA34: 1 | AB34: 5 | AE34: 2018-07-02 | AF34: 5 | AG34: =IF(SUM(U33:U36)=0,"1er Groupe E",IF(COUNTIF(S33:S36,1)=1,VLOOKUP(1,S33:T36,2,FALSE),IF(COUNTIF(S33:S36,1)>=2,"Tirage au Sort E1"))) -> Brésil | AH34: 20 | AI34: 2 | AM34: =IF(SUM(U39:U42)=0,"2nd Groupe F",IF(OR(COUNTIF(S39:S42,1)>1,COUNTIF(S39:S42,2)>1),"Tirage au sort F2",VLOOKUP(2,S39:T42,2,FALSE))) -> Mexique | AN34: 0 | AO34: 0
B35: =VLOOKUP($D35,TABLEAU_MATCHS[#All],2,FALSE) -> 2018-06-23 | C35: =VLOOKUP($D35,TABLEAU_MATCHS[#All],3,FALSE) -> 21:00:00 | D35: 28 | E35: ="Groupe "&VLOOKUP($I35,TABLEAU_TEAMS[[#All],[TEAM]:[GROUP_INITIAL_RANK]],2,FALSE) -> Groupe F | I35: =VLOOKUP($D35,TABLEAU_MATCHS[#All],4,FALSE) -> Allemagne | J35: 2 | L35: =VLOOKUP($D35,TABLEAU_MATCHS[#All],5,FALSE) -> Suède | M35: 1 | Q35: 02820Serbie | R35: 2820 | S35: 3 | T35: Serbie | U35: =SUMPRODUCT((Teams1=T35)*(Teams1_Score<>""))+SUMPRODUCT((Teams2=T35)*(Teams2_Score<>"")) -> 3 | V35: =SUMPRODUCT((Teams1=T35)*(Teams1_Score>Teams2_Score))+SUMPRODUCT((Teams2=T35)*(Teams2_Score>Teams1_Score)) -> 1 | W35: =SUMPRODUCT((Teams1=T35)*(Teams1_Score=Teams2_Score)*(Teams1_Score<>""))+SUMPRODUCT((Teams2=T35)*(Teams2_Score=Teams1_Score)*(Teams2_Score<>"")) -> 0 | X35: =SUMPRODUCT((Teams1=T35)*(Teams1_Score<Teams2_Score))+SUMPRODUCT((Teams2=T35)*(Teams2_Score<Teams1_Score)) -> 2 | Y35: =SUMPRODUCT((Teams1=T35)*(Teams1_Score))+SUMPRODUCT((Teams2=T35)*(Teams2_Score)) -> 2 | Z35: =SUMPRODUCT((Teams1=T35)*(Teams2_Score))+SUMPRODUCT((Teams2=T35)*(Teams1_Score)) -> 4 | AA35: -2 | AB35: 3 | AE35: 2018-07-03 | AF35: 6 | AG35: =IF(SUM(U39:U42)=0,"1er Groupe F",IF(COUNTIF(S39:S42,1)=1,VLOOKUP(1,S39:T42,2,FALSE),IF(COUNTIF(S39:S42,1)>=2,"Tirage au Sort F1"))) -> Suède | AH35: 10 | AI35: 1 | AM35: =IF(SUM(U33:U36)=0,"2nd Groupe E",IF(OR(COUNTIF(S33:S36,1)>1,COUNTIF(S33:S36,2)>1),"Tirage au sort E2",VLOOKUP(2,S33:T36,2,FALSE))) -> Suisse | AN35: 0 | AO35: 0
B36: =VLOOKUP($D36,TABLEAU_MATCHS[#All],2,FALSE) -> 2018-06-23 | C36: =VLOOKUP($D36,TABLEAU_MATCHS[#All],3,FALSE) -> 15:00:00 | D36: 29 | E36: ="Groupe "&VLOOKUP($I36,TABLEAU_TEAMS[[#All],[TEAM]:[GROUP_INITIAL_RANK]],2,FALSE) -> Groupe G | I36: =VLOOKUP($D36,TABLEAU_MATCHS[#All],4,FALSE) -> Belgique | J36: 5 | L36: =VLOOKUP($D36,TABLEAU_MATCHS[#All],5,FALSE) -> Tunisie | M36: 2 | Q36: 00720Costa Rica | R36: 720 | S36: 4 | T36: Costa Rica | U36: =SUMPRODUCT((Teams1=T36)*(Teams1_Score<>""))+SUMPRODUCT((Teams2=T36)*(Teams2_Score<>"")) -> 3 | V36: =SUMPRODUCT((Teams1=T36)*(Teams1_Score>Teams2_Score))+SUMPRODUCT((Teams2=T36)*(Teams2_Score>Teams1_Score)) -> 0 | W36: =SUMPRODUCT((Teams1=T36)*(Teams1_Score=Teams2_Score)*(Teams1_Score<>""))+SUMPRODUCT((Teams2=T36)*(Teams2_Score=Teams1_Score)*(Teams2_Score<>"")) -> 1 | X36: =SUMPRODUCT((Teams1=T36)*(Teams1_Score<Teams2_Score))+SUMPRODUCT((Teams2=T36)*(Teams2_Score<Teams1_Score)) -> 2 | Y36: =SUMPRODUCT((Teams1=T36)*(Teams1_Score))+SUMPRODUCT((Teams2=T36)*(Teams2_Score)) -> 2 | Z36: =SUMPRODUCT((Teams1=T36)*(Teams2_Score))+SUMPRODUCT((Teams2=T36)*(Teams1_Score)) -> 5 | AA36: -3 | AB36: 1 | AE36: 2018-07-02 | AF36: 7 | AG36: =IF(SUM(U45:U48)=0,"1er Groupe G",IF(COUNTIF(S45:S48,1)=1,VLOOKUP(1,S45:T48,2,FALSE),IF(COUNTIF(S45:S48,1)>=2,"Tirage au Sort G1"))) -> Belgique | AH36: 30 | AI36: 3 | AM36: Japon | AN36: 20 | AO36: 2
B37: =VLOOKUP($D37,TABLEAU_MATCHS[#All],2,FALSE) -> 2018-06-24 | C37: =VLOOKUP($D37,TABLEAU_MATCHS[#All],3,FALSE) -> 15:00:00 | D37: 30 | E37: ="Groupe "&VLOOKUP($I37,TABLEAU_TEAMS[[#All],[TEAM]:[GROUP_INITIAL_RANK]],2,FALSE) -> Groupe G | I37: =VLOOKUP($D37,TABLEAU_MATCHS[#All],4,FALSE) -> Angleterre | J37: 6 | L37: =VLOOKUP($D37,TABLEAU_MATCHS[#All],5,FALSE) -> Panama | M37: 1 | AE37: 2018-07-03 | AF37: 8 | AG37: Colombie | AH37: 13 | AI37: 1 | AK37: 3 | AM37: =IF(SUM(U45:U48)=0,"2nd Groupe G",IF(OR(COUNTIF(S45:S48,1)>1,COUNTIF(S45:S48,2)>1),"Tirage au sort G2",VLOOKUP(2,S45:T48,2,FALSE))) -> Angleterre | AN37: 14 | AO37: 1 | AQ37: 4
B38: =VLOOKUP($D38,TABLEAU_MATCHS[#All],2,FALSE) -> 2018-06-24 | C38: =VLOOKUP($D38,TABLEAU_MATCHS[#All],3,FALSE) -> 20:00:00 | D38: 31 | E38: ="Groupe "&VLOOKUP($I38,TABLEAU_TEAMS[[#All],[TEAM]:[GROUP_INITIAL_RANK]],2,FALSE) -> Groupe H | I38: =VLOOKUP($D38,TABLEAU_MATCHS[#All],4,FALSE) -> Japon | J38: 2 | L38: =VLOOKUP($D38,TABLEAU_MATCHS[#All],5,FALSE) -> Sénégal | M38: 2 | S38: Rg | T38: Groupe F | U38: MJ | V38: G | W38: N | X38: P | Y38: BP | Z38: BC | AA38: +/- | AB38: Pts
B39: =VLOOKUP($D39,TABLEAU_MATCHS[#All],2,FALSE) -> 2018-06-24 | C39: =VLOOKUP($D39,TABLEAU_MATCHS[#All],3,FALSE) -> 21:00:00 | D39: 32 | E39: ="Groupe "&VLOOKUP($I39,TABLEAU_TEAMS[[#All],[TEAM]:[GROUP_INITIAL_RANK]],2,FALSE) -> Groupe H | I39: =VLOOKUP($D39,TABLEAU_MATCHS[#All],4,FALSE) -> Pologne | J39: 0 | L39: =VLOOKUP($D39,TABLEAU_MATCHS[#All],5,FALSE) -> Colombie | M39: 3 | Q39: =INDEX($Q90:$Q93,MATCH(SMALL(COUNTIF($Q90:$Q93,">="&$Q90:$Q93),ROW(INDIRECT("1:"&ROWS($Q90:$Q93)))),COUNTIF($Q90:$Q93,">="&$Q90:$Q93),0)) -> 06350Suède | R39: =INDEX($R90:$R93,MATCH(SMALL(COUNTIF($Q90:$Q93,">="&$Q90:$Q93),ROW(INDIRECT("1:"&ROWS($Q90:$Q93)))),COUNTIF($Q90:$Q93,">="&$Q90:$Q93),0)) -> 6350 | S39: =INDEX($S90:$S93,MATCH(SMALL(COUNTIF($Q90:$Q93,">="&$Q90:$Q93),ROW(INDIRECT("1:"&ROWS($Q90:$Q93)))),COUNTIF($Q90:$Q93,">="&$Q90:$Q93),0)) -> 1 | T39: =INDEX($T90:$T93,MATCH(SMALL(COUNTIF($Q90:$Q93,">="&$Q90:$Q93),ROW(INDIRECT("1:"&ROWS($Q90:$Q93)))),COUNTIF($Q90:$Q93,">="&$Q90:$Q93),0)) -> Suède | U39: =SUMPRODUCT((Teams1=T39)*(Teams1_Score<>""))+SUMPRODUCT((Teams2=T39)*(Teams2_Score<>"")) -> 3 | V39: =SUMPRODUCT((Teams1=T39)*(Teams1_Score>Teams2_Score))+SUMPRODUCT((Teams2=T39)*(Teams2_Score>Teams1_Score)) -> 2 | W39: =SUMPRODUCT((Teams1=T39)*(Teams1_Score=Teams2_Score)*(Teams1_Score<>""))+SUMPRODUCT((Teams2=T39)*(Teams2_Score=Teams1_Score)*(Teams2_Score<>"")) -> 0 | X39: =SUMPRODUCT((Teams1=T39)*(Teams1_Score<Teams2_Score))+SUMPRODUCT((Teams2=T39)*(Teams2_Score<Teams1_Score)) -> 1 | Y39: =SUMPRODUCT((Teams1=T39)*(Teams1_Score))+SUMPRODUCT((Teams2=T39)*(Teams2_Score)) -> 5 | Z39: =SUMPRODUCT((Teams1=T39)*(Teams2_Score))+SUMPRODUCT((Teams2=T39)*(Teams1_Score)) -> 2 | AA39: =Y39-Z39 -> 3 | AB39: =3*V39+W39 -> 6
B40: =VLOOKUP($D40,TABLEAU_MATCHS[#All],2,FALSE) -> 2018-06-25 | C40: =VLOOKUP($D40,TABLEAU_MATCHS[#All],3,FALSE) -> 18:00:00 | D40: 33 | E40: ="Groupe "&VLOOKUP($I40,TABLEAU_TEAMS[[#All],[TEAM]:[GROUP_INITIAL_RANK]],2,FALSE) -> Groupe A | I40: =VLOOKUP($D40,TABLEAU_MATCHS[#All],4,FALSE) -> Uruguay | J40: 3 | L40: =VLOOKUP($D40,TABLEAU_MATCHS[#All],5,FALSE) -> Russie | M40: 0 | Q40: 05930Mexique | R40: 5930 | S40: 2 | T40: Mexique | U40: =SUMPRODUCT((Teams1=T40)*(Teams1_Score<>""))+SUMPRODUCT((Teams2=T40)*(Teams2_Score<>"")) -> 3 | V40: =SUMPRODUCT((Teams1=T40)*(Teams1_Score>Teams2_Score))+SUMPRODUCT((Teams2=T40)*(Teams2_Score>Teams1_Score)) -> 2 | W40: =SUMPRODUCT((Teams1=T40)*(Teams1_Score=Teams2_Score)*(Teams1_Score<>""))+SUMPRODUCT((Teams2=T40)*(Teams2_Score=Teams1_Score)*(Teams2_Score<>"")) -> 0 | X40: =SUMPRODUCT((Teams1=T40)*(Teams1_Score<Teams2_Score))+SUMPRODUCT((Teams2=T40)*(Teams2_Score<Teams1_Score)) -> 1 | Y40: =SUMPRODUCT((Teams1=T40)*(Teams1_Score))+SUMPRODUCT((Teams2=T40)*(Teams2_Score)) -> 3 | Z40: =SUMPRODUCT((Teams1=T40)*(Teams2_Score))+SUMPRODUCT((Teams2=T40)*(Teams1_Score)) -> 4 | AA40: -1 | AB40: 6
B41: =VLOOKUP($D41,TABLEAU_MATCHS[#All],2,FALSE) -> 2018-06-25 | C41: =VLOOKUP($D41,TABLEAU_MATCHS[#All],3,FALSE) -> 17:00:00 | D41: 34 | E41: ="Groupe "&VLOOKUP($I41,TABLEAU_TEAMS[[#All],[TEAM]:[GROUP_INITIAL_RANK]],2,FALSE) -> Groupe A | I41: =VLOOKUP($D41,TABLEAU_MATCHS[#All],4,FALSE) -> Arabie Saoudite | J41: 2 | L41: =VLOOKUP($D41,TABLEAU_MATCHS[#All],5,FALSE) -> Egypte | M41: 1 | Q41: 03030République de Corée | R41: 3030 | S41: 3 | T41: République de Corée | U41: =SUMPRODUCT((Teams1=T41)*(Teams1_Score<>""))+SUMPRODUCT((Teams2=T41)*(Teams2_Score<>"")) -> 3 | V41: =SUMPRODUCT((Teams1=T41)*(Teams1_Score>Teams2_Score))+SUMPRODUCT((Teams2=T41)*(Teams2_Score>Teams1_Score)) -> 1 | W41: =SUMPRODUCT((Teams1=T41)*(Teams1_Score=Teams2_Score)*(Teams1_Score<>""))+SUMPRODUCT((Teams2=T41)*(Teams2_Score=Teams1_Score)*(Teams2_Score<>"")) -> 0 | X41: =SUMPRODUCT((Teams1=T41)*(Teams1_Score<Teams2_Score))+SUMPRODUCT((Teams2=T41)*(Teams2_Score<Teams1_Score)) -> 2 | Y41: =SUMPRODUCT((Teams1=T41)*(Teams1_Score))+SUMPRODUCT((Teams2=T41)*(Teams2_Score)) -> 3 | Z41: =SUMPRODUCT((Teams1=T41)*(Teams2_Score))+SUMPRODUCT((Teams2=T41)*(Teams1_Score)) -> 3 | AA41: 0 | AB41: 3
B42: =VLOOKUP($D42,TABLEAU_MATCHS[#All],2,FALSE) -> 2018-06-25 | C42: =VLOOKUP($D42,TABLEAU_MATCHS[#All],3,FALSE) -> 21:00:00 | D42: 35 | E42: ="Groupe "&VLOOKUP($I42,TABLEAU_TEAMS[[#All],[TEAM]:[GROUP_INITIAL_RANK]],2,FALSE) -> Groupe B | I42: =VLOOKUP($D42,TABLEAU_MATCHS[#All],4,FALSE) -> RI Iran | J42: 1 | L42: =VLOOKUP($D42,TABLEAU_MATCHS[#All],5,FALSE) -> Portugal | M42: 1 | Q42: 02820Allemagne | R42: 2820 | S42: 4 | T42: Allemagne | U42: =SUMPRODUCT((Teams1=T42)*(Teams1_Score<>""))+SUMPRODUCT((Teams2=T42)*(Teams2_Score<>"")) -> 3 | V42: =SUMPRODUCT((Teams1=T42)*(Teams1_Score>Teams2_Score))+SUMPRODUCT((Teams2=T42)*(Teams2_Score>Teams1_Score)) -> 1 | W42: =SUMPRODUCT((Teams1=T42)*(Teams1_Score=Teams2_Score)*(Teams1_Score<>""))+SUMPRODUCT((Teams2=T42)*(Teams2_Score=Teams1_Score)*(Teams2_Score<>"")) -> 0 | X42: =SUMPRODUCT((Teams1=T42)*(Teams1_Score<Teams2_Score))+SUMPRODUCT((Teams2=T42)*(Teams2_Score<Teams1_Score)) -> 2 | Y42: =SUMPRODUCT((Teams1=T42)*(Teams1_Score))+SUMPRODUCT((Teams2=T42)*(Teams2_Score)) -> 2 | Z42: =SUMPRODUCT((Teams1=T42)*(Teams2_Score))+SUMPRODUCT((Teams2=T42)*(Teams1_Score)) -> 4 | AA42: -2 | AB42: 3
B43: =VLOOKUP($D43,TABLEAU_MATCHS[#All],2,FALSE) -> 2018-06-25 | C43: =VLOOKUP($D43,TABLEAU_MATCHS[#All],3,FALSE) -> 20:00:00 | D43: 36 | E43: ="Groupe "&VLOOKUP($I43,TABLEAU_TEAMS[[#All],[TEAM]:[GROUP_INITIAL_RANK]],2,FALSE) -> Groupe B | I43: =VLOOKUP($D43,TABLEAU_MATCHS[#All],4,FALSE) -> Espagne | J43: 2 | L43: =VLOOKUP($D43,TABLEAU_MATCHS[#All],5,FALSE) -> Maroc | M43: 2
B44: =VLOOKUP($D44,TABLEAU_MATCHS[#All],2,FALSE) -> 2018-06-26 | C44: =VLOOKUP($D44,TABLEAU_MATCHS[#All],3,FALSE) -> 17:00:00 | D44: 37 | E44: ="Groupe "&VLOOKUP($I44,TABLEAU_TEAMS[[#All],[TEAM]:[GROUP_INITIAL_RANK]],2,FALSE) -> Groupe C | I44: =VLOOKUP($D44,TABLEAU_MATCHS[#All],4,FALSE) -> Danemark | J44: 0 | L44: =VLOOKUP($D44,TABLEAU_MATCHS[#All],5,FALSE) -> France | M44: 0 | S44: Rg | T44: Groupe G | U44: MJ | V44: G | W44: N | X44: P | Y44: BP | Z44: BC | AA44: +/- | AB44: Pts
B45: =VLOOKUP($D45,TABLEAU_MATCHS[#All],2,FALSE) -> 2018-06-26 | C45: =VLOOKUP($D45,TABLEAU_MATCHS[#All],3,FALSE) -> 17:00:00 | D45: 38 | E45: ="Groupe "&VLOOKUP($I45,TABLEAU_TEAMS[[#All],[TEAM]:[GROUP_INITIAL_RANK]],2,FALSE) -> Groupe C | I45: =VLOOKUP($D45,TABLEAU_MATCHS[#All],4,FALSE) -> Australie | J45: 0 | L45: =VLOOKUP($D45,TABLEAU_MATCHS[#All],5,FALSE) -> Pérou | M45: 2 | Q45: =INDEX($Q96:$Q99,MATCH(SMALL(COUNTIF($Q96:$Q99,">="&$Q96:$Q99),ROW(INDIRECT("1:"&ROWS($Q96:$Q99)))),COUNTIF($Q96:$Q99,">="&$Q96:$Q99),0)) -> 09790Belgique | R45: =INDEX($R96:$R99,MATCH(SMALL(COUNTIF($Q96:$Q99,">="&$Q96:$Q99),ROW(INDIRECT("1:"&ROWS($Q96:$Q99)))),COUNTIF($Q96:$Q99,">="&$Q96:$Q99),0)) -> 9790 | S45: =INDEX($S96:$S99,MATCH(SMALL(COUNTIF($Q96:$Q99,">="&$Q96:$Q99),ROW(INDIRECT("1:"&ROWS($Q96:$Q99)))),COUNTIF($Q96:$Q99,">="&$Q96:$Q99),0)) -> 1 | T45: =INDEX($T96:$T99,MATCH(SMALL(COUNTIF($Q96:$Q99,">="&$Q96:$Q99),ROW(INDIRECT("1:"&ROWS($Q96:$Q99)))),COUNTIF($Q96:$Q99,">="&$Q96:$Q99),0)) -> Belgique | U45: =SUMPRODUCT((Teams1=T45)*(Teams1_Score<>""))+SUMPRODUCT((Teams2=T45)*(Teams2_Score<>"")) -> 3 | V45: =SUMPRODUCT((Teams1=T45)*(Teams1_Score>Teams2_Score))+SUMPRODUCT((Teams2=T45)*(Teams2_Score>Teams1_Score)) -> 3 | W45: =SUMPRODUCT((Teams1=T45)*(Teams1_Score=Teams2_Score)*(Teams1_Score<>""))+SUMPRODUCT((Teams2=T45)*(Teams2_Score=Teams1_Score)*(Teams2_Score<>"")) -> 0 | X45: =SUMPRODUCT((Teams1=T45)*(Teams1_Score<Teams2_Score))+SUMPRODUCT((Teams2=T45)*(Teams2_Score<Teams1_Score)) -> 0 | Y45: =SUMPRODUCT((Teams1=T45)*(Teams1_Score))+SUMPRODUCT((Teams2=T45)*(Teams2_Score)) -> 9 | Z45: =SUMPRODUCT((Teams1=T45)*(Teams2_Score))+SUMPRODUCT((Teams2=T45)*(Teams1_Score)) -> 2 | AA45: =Y45-Z45 -> 7 | AB45: =3*V45+W45 -> 9
B46: =VLOOKUP($D46,TABLEAU_MATCHS[#All],2,FALSE) -> 2018-06-26 | C46: =VLOOKUP($D46,TABLEAU_MATCHS[#All],3,FALSE) -> 21:00:00 | D46: 39 | E46: ="Groupe "&VLOOKUP($I46,TABLEAU_TEAMS[[#All],[TEAM]:[GROUP_INITIAL_RANK]],2,FALSE) -> Groupe D | I46: =VLOOKUP($D46,TABLEAU_MATCHS[#All],4,FALSE) -> Nigeria | J46: 1 | L46: =VLOOKUP($D46,TABLEAU_MATCHS[#All],5,FALSE) -> Argentine | M46: 2 | Q46: 06580Angleterre | R46: 6580 | S46: 2 | T46: Angleterre | U46: =SUMPRODUCT((Teams1=T46)*(Teams1_Score<>""))+SUMPRODUCT((Teams2=T46)*(Teams2_Score<>"")) -> 3 | V46: =SUMPRODUCT((Teams1=T46)*(Teams1_Score>Teams2_Score))+SUMPRODUCT((Teams2=T46)*(Teams2_Score>Teams1_Score)) -> 2 | W46: =SUMPRODUCT((Teams1=T46)*(Teams1_Score=Teams2_Score)*(Teams1_Score<>""))+SUMPRODUCT((Teams2=T46)*(Teams2_Score=Teams1_Score)*(Teams2_Score<>"")) -> 0 | X46: =SUMPRODUCT((Teams1=T46)*(Teams1_Score<Teams2_Score))+SUMPRODUCT((Teams2=T46)*(Teams2_Score<Teams1_Score)) -> 1 | Y46: =SUMPRODUCT((Teams1=T46)*(Teams1_Score))+SUMPRODUCT((Teams2=T46)*(Teams2_Score)) -> 8 | Z46: =SUMPRODUCT((Teams1=T46)*(Teams2_Score))+SUMPRODUCT((Teams2=T46)*(Teams1_Score)) -> 3 | AA46: 5 | AB46: 6
B47: =VLOOKUP($D47,TABLEAU_MATCHS[#All],2,FALSE) -> 2018-06-26 | C47: =VLOOKUP($D47,TABLEAU_MATCHS[#All],3,FALSE) -> 21:00:00 | D47: 40 | E47: ="Groupe "&VLOOKUP($I47,TABLEAU_TEAMS[[#All],[TEAM]:[GROUP_INITIAL_RANK]],2,FALSE) -> Groupe D | I47: =VLOOKUP($D47,TABLEAU_MATCHS[#All],4,FALSE) -> Islande | J47: 1 | L47: =VLOOKUP($D47,TABLEAU_MATCHS[#All],5,FALSE) -> Croatie | M47: 2 | Q47: 02750Tunisie | R47: 2750 | S47: 3 | T47: Tunisie | U47: =SUMPRODUCT((Teams1=T47)*(Teams1_Score<>""))+SUMPRODUCT((Teams2=T47)*(Teams2_Score<>"")) -> 3 | V47: =SUMPRODUCT((Teams1=T47)*(Teams1_Score>Teams2_Score))+SUMPRODUCT((Teams2=T47)*(Teams2_Score>Teams1_Score)) -> 1 | W47: =SUMPRODUCT((Teams1=T47)*(Teams1_Score=Teams2_Score)*(Teams1_Score<>""))+SUMPRODUCT((Teams2=T47)*(Teams2_Score=Teams1_Score)*(Teams2_Score<>"")) -> 0 | X47: =SUMPRODUCT((Teams1=T47)*(Teams1_Score<Teams2_Score))+SUMPRODUCT((Teams2=T47)*(Teams2_Score<Teams1_Score)) -> 2 | Y47: =SUMPRODUCT((Teams1=T47)*(Teams1_Score))+SUMPRODUCT((Teams2=T47)*(Teams2_Score)) -> 5 | Z47: =SUMPRODUCT((Teams1=T47)*(Teams2_Score))+SUMPRODUCT((Teams2=T47)*(Teams1_Score)) -> 8 | AA47: -3 | AB47: 3
B48: =VLOOKUP($D48,TABLEAU_MATCHS[#All],2,FALSE) -> 2018-06-27 | C48: =VLOOKUP($D48,TABLEAU_MATCHS[#All],3,FALSE) -> 21:00:00 | D48: 41 | E48: ="Groupe "&VLOOKUP($I48,TABLEAU_TEAMS[[#All],[TEAM]:[GROUP_INITIAL_RANK]],2,FALSE) -> Groupe E | I48: =VLOOKUP($D48,TABLEAU_MATCHS[#All],4,FALSE) -> Serbie | J48: 0 | L48: =VLOOKUP($D48,TABLEAU_MATCHS[#All],5,FALSE) -> Brésil | M48: 2 | Q48: -00880Panama | R48: -880 | S48: 4 | T48: Panama | U48: =SUMPRODUCT((Teams1=T48)*(Teams1_Score<>""))+SUMPRODUCT((Teams2=T48)*(Teams2_Score<>"")) -> 3 | V48: =SUMPRODUCT((Teams1=T48)*(Teams1_Score>Teams2_Score))+SUMPRODUCT((Teams2=T48)*(Teams2_Score>Teams1_Score)) -> 0 | W48: =SUMPRODUCT((Teams1=T48)*(Teams1_Score=Teams2_Score)*(Teams1_Score<>""))+SUMPRODUCT((Teams2=T48)*(Teams2_Score=Teams1_Score)*(Teams2_Score<>"")) -> 0 | X48: =SUMPRODUCT((Teams1=T48)*(Teams1_Score<Teams2_Score))+SUMPRODUCT((Teams2=T48)*(Teams2_Score<Teams1_Score)) -> 3 | Y48: =SUMPRODUCT((Teams1=T48)*(Teams1_Score))+SUMPRODUCT((Teams2=T48)*(Teams2_Score)) -> 2 | Z48: =SUMPRODUCT((Teams1=T48)*(Teams2_Score))+SUMPRODUCT((Teams2=T48)*(Teams1_Score)) -> 11 | AA48: -9 | AB48: 0
B49: =VLOOKUP($D49,TABLEAU_MATCHS[#All],2,FALSE) -> 2018-06-27 | C49: =VLOOKUP($D49,TABLEAU_MATCHS[#All],3,FALSE) -> 21:00:00 | D49: 42 | E49: ="Groupe "&VLOOKUP($I49,TABLEAU_TEAMS[[#All],[TEAM]:[GROUP_INITIAL_RANK]],2,FALSE) -> Groupe E | I49: =VLOOKUP($D49,TABLEAU_MATCHS[#All],4,FALSE) -> Suisse | J49: 2 | L49: =VLOOKUP($D49,TABLEAU_MATCHS[#All],5,FALSE) -> Costa Rica | M49: 2
B50: =VLOOKUP($D50,TABLEAU_MATCHS[#All],2,FALSE) -> 2018-06-27 | C50: =VLOOKUP($D50,TABLEAU_MATCHS[#All],3,FALSE) -> 19:00:00 | D50: 43 | E50: ="Groupe "&VLOOKUP($I50,TABLEAU_TEAMS[[#All],[TEAM]:[GROUP_INITIAL_RANK]],2,FALSE) -> Groupe F | I50: =VLOOKUP($D50,TABLEAU_MATCHS[#All],4,FALSE) -> Mexique | J50: 0 | L50: =VLOOKUP($D50,TABLEAU_MATCHS[#All],5,FALSE) -> Suède | M50: 3 | S50: Rg | T50: Groupe H | U50: MJ | V50: G | W50: N | X50: P | Y50: BP | Z50: BC | AA50: +/- | AB50: Pts
B51: =VLOOKUP($D51,TABLEAU_MATCHS[#All],2,FALSE) -> 2018-06-27 | C51: =VLOOKUP($D51,TABLEAU_MATCHS[#All],3,FALSE) -> 17:00:00 | D51: 44 | E51: ="Groupe "&VLOOKUP($I51,TABLEAU_TEAMS[[#All],[TEAM]:[GROUP_INITIAL_RANK]],2,FALSE) -> Groupe F | I51: =VLOOKUP($D51,TABLEAU_MATCHS[#All],4,FALSE) -> République de Corée | J51: 2 | L51: =VLOOKUP($D51,TABLEAU_MATCHS[#All],5,FALSE) -> Allemagne | M51: 0 | Q51: =INDEX($Q102:$Q105,MATCH(SMALL(COUNTIF($Q102:$Q105,">="&$Q102:$Q105),ROW(INDIRECT("1:"&ROWS($Q102:$Q105)))),COUNTIF($Q102:$Q105,">="&$Q102:$Q105),0)) -> 06350Colombie | R51: =INDEX($R102:$R105,MATCH(SMALL(COUNTIF($Q102:$Q105,">="&$Q102:$Q105),ROW(INDIRECT("1:"&ROWS($Q102:$Q105)))),COUNTIF($Q102:$Q105,">="&$Q102:$Q105),0)) -> 6350 | S51: =INDEX($S102:$S105,MATCH(SMALL(COUNTIF($Q102:$Q105,">="&$Q102:$Q105),ROW(INDIRECT("1:"&ROWS($Q102:$Q105)))),COUNTIF($Q102:$Q105,">="&$Q102:$Q105),0)) -> 1 | T51: =INDEX($T102:$T105,MATCH(SMALL(COUNTIF($Q102:$Q105,">="&$Q102:$Q105),ROW(INDIRECT("1:"&ROWS($Q102:$Q105)))),COUNTIF($Q102:$Q105,">="&$Q102:$Q105),0)) -> Colombie | U51: =SUMPRODUCT((Teams1=T51)*(Teams1_Score<>""))+SUMPRODUCT((Teams2=T51)*(Teams2_Score<>"")) -> 3 | V51: =SUMPRODUCT((Teams1=T51)*(Teams1_Score>Teams2_Score))+SUMPRODUCT((Teams2=T51)*(Teams2_Score>Teams1_Score)) -> 2 | W51: =SUMPRODUCT((Teams1=T51)*(Teams1_Score=Teams2_Score)*(Teams1_Score<>""))+SUMPRODUCT((Teams2=T51)*(Teams2_Score=Teams1_Score)*(Teams2_Score<>"")) -> 0 | X51: =SUMPRODUCT((Teams1=T51)*(Teams1_Score<Teams2_Score))+SUMPRODUCT((Teams2=T51)*(Teams2_Score<Teams1_Score)) -> 1 | Y51: =SUMPRODUCT((Teams1=T51)*(Teams1_Score))+SUMPRODUCT((Teams2=T51)*(Teams2_Score)) -> 5 | Z51: =SUMPRODUCT((Teams1=T51)*(Teams2_Score))+SUMPRODUCT((Teams2=T51)*(Teams1_Score)) -> 2 | AA51: =Y51-Z51 -> 3 | AB51: =3*V51+W51 -> 6
B52: =VLOOKUP($D52,TABLEAU_MATCHS[#All],2,FALSE) -> 2018-06-28 | C52: =VLOOKUP($D52,TABLEAU_MATCHS[#All],3,FALSE) -> 21:00:00 | D52: 45 | E52: ="Groupe "&VLOOKUP($I52,TABLEAU_TEAMS[[#All],[TEAM]:[GROUP_INITIAL_RANK]],2,FALSE) -> Groupe G | I52: =VLOOKUP($D52,TABLEAU_MATCHS[#All],4,FALSE) -> Panama | J52: 1 | L52: =VLOOKUP($D52,TABLEAU_MATCHS[#All],5,FALSE) -> Tunisie | M52: 2 | Q52: 04040Sénégal | R52: 4040 | S52: 2 | T52: Sénégal | U52: =SUMPRODUCT((Teams1=T52)*(Teams1_Score<>""))+SUMPRODUCT((Teams2=T52)*(Teams2_Score<>"")) -> 3 | V52: =SUMPRODUCT((Teams1=T52)*(Teams1_Score>Teams2_Score))+SUMPRODUCT((Teams2=T52)*(Teams2_Score>Teams1_Score)) -> 1 | W52: =SUMPRODUCT((Teams1=T52)*(Teams1_Score=Teams2_Score)*(Teams1_Score<>""))+SUMPRODUCT((Teams2=T52)*(Teams2_Score=Teams1_Score)*(Teams2_Score<>"")) -> 1 | X52: =SUMPRODUCT((Teams1=T52)*(Teams1_Score<Teams2_Score))+SUMPRODUCT((Teams2=T52)*(Teams2_Score<Teams1_Score)) -> 1 | Y52: =SUMPRODUCT((Teams1=T52)*(Teams1_Score))+SUMPRODUCT((Teams2=T52)*(Teams2_Score)) -> 4 | Z52: =SUMPRODUCT((Teams1=T52)*(Teams2_Score))+SUMPRODUCT((Teams2=T52)*(Teams1_Score)) -> 4 | AA52: 0 | AB52: 4
B53: =VLOOKUP($D53,TABLEAU_MATCHS[#All],2,FALSE) -> 2018-06-28 | C53: =VLOOKUP($D53,TABLEAU_MATCHS[#All],3,FALSE) -> 20:00:00 | D53: 46 | E53: ="Groupe "&VLOOKUP($I53,TABLEAU_TEAMS[[#All],[TEAM]:[GROUP_INITIAL_RANK]],2,FALSE) -> Groupe G | I53: =VLOOKUP($D53,TABLEAU_MATCHS[#All],4,FALSE) -> Angleterre | J53: 0 | L53: =VLOOKUP($D53,TABLEAU_MATCHS[#All],5,FALSE) -> Belgique | M53: 1 | Q53: 04040Japon | R53: 4040 | S53: 2 | T53: Japon | U53: =SUMPRODUCT((Teams1=T53)*(Teams1_Score<>""))+SUMPRODUCT((Teams2=T53)*(Teams2_Score<>"")) -> 3 | V53: =SUMPRODUCT((Teams1=T53)*(Teams1_Score>Teams2_Score))+SUMPRODUCT((Teams2=T53)*(Teams2_Score>Teams1_Score)) -> 1 | W53: =SUMPRODUCT((Teams1=T53)*(Teams1_Score=Teams2_Score)*(Teams1_Score<>""))+SUMPRODUCT((Teams2=T53)*(Teams2_Score=Teams1_Score)*(Teams2_Score<>"")) -> 1 | X53: =SUMPRODUCT((Teams1=T53)*(Teams1_Score<Teams2_Score))+SUMPRODUCT((Teams2=T53)*(Teams2_Score<Teams1_Score)) -> 1 | Y53: =SUMPRODUCT((Teams1=T53)*(Teams1_Score))+SUMPRODUCT((Teams2=T53)*(Teams2_Score)) -> 4 | Z53: =SUMPRODUCT((Teams1=T53)*(Teams2_Score))+SUMPRODUCT((Teams2=T53)*(Teams1_Score)) -> 4 | AA53: 0 | AB53: 4
B54: =VLOOKUP($D54,TABLEAU_MATCHS[#All],2,FALSE) -> 2018-06-28 | C54: =VLOOKUP($D54,TABLEAU_MATCHS[#All],3,FALSE) -> 17:00:00 | D54: 47 | E54: ="Groupe "&VLOOKUP($I54,TABLEAU_TEAMS[[#All],[TEAM]:[GROUP_INITIAL_RANK]],2,FALSE) -> Groupe H | I54: =VLOOKUP($D54,TABLEAU_MATCHS[#All],4,FALSE) -> Japon | J54: 0 | L54: =VLOOKUP($D54,TABLEAU_MATCHS[#All],5,FALSE) -> Pologne | M54: 1 | Q54: 02720Pologne | R54: 2720 | S54: 4 | T54: Pologne | U54: =SUMPRODUCT((Teams1=T54)*(Teams1_Score<>""))+SUMPRODUCT((Teams2=T54)*(Teams2_Score<>"")) -> 3 | V54: =SUMPRODUCT((Teams1=T54)*(Teams1_Score>Teams2_Score))+SUMPRODUCT((Teams2=T54)*(Teams2_Score>Teams1_Score)) -> 1 | W54: =SUMPRODUCT((Teams1=T54)*(Teams1_Score=Teams2_Score)*(Teams1_Score<>""))+SUMPRODUCT((Teams2=T54)*(Teams2_Score=Teams1_Score)*(Teams2_Score<>"")) -> 0 | X54: =SUMPRODUCT((Teams1=T54)*(Teams1_Score<Teams2_Score))+SUMPRODUCT((Teams2=T54)*(Teams2_Score<Teams1_Score)) -> 2 | Y54: =SUMPRODUCT((Teams1=T54)*(Teams1_Score))+SUMPRODUCT((Teams2=T54)*(Teams2_Score)) -> 2 | Z54: =SUMPRODUCT((Teams1=T54)*(Teams2_Score))+SUMPRODUCT((Teams2=T54)*(Teams1_Score)) -> 5 | AA54: -3 | AB54: 3
B55: =VLOOKUP($D55,TABLEAU_MATCHS[#All],2,FALSE) -> 2018-06-28 | C55: =VLOOKUP($D55,TABLEAU_MATCHS[#All],3,FALSE) -> 18:00:00 | D55: 48 | E55: ="Groupe "&VLOOKUP($I55,TABLEAU_TEAMS[[#All],[TEAM]:[GROUP_INITIAL_RANK]],2,FALSE) -> Groupe H | I55: =VLOOKUP($D55,TABLEAU_MATCHS[#All],4,FALSE) -> Sénégal | J55: 0 | L55: =VLOOKUP($D55,TABLEAU_MATCHS[#All],5,FALSE) -> Colombie | M55: 1
B59: Tirage au sort A1 | S59: Rg | T59: Groupe A | U59: MJ | V59: G | W59: N | X59: P | Y59: BP | Z59: BC | AA59: +/- | AB59: Pts
B60: =IF(ROWS($1:1)<=COUNTIF($S$9:$S$12,1),INDEX($T$9:$T$12,SMALL(IF($S$9:$S$12=1,ROW(INDIRECT("1:"&ROWS($S$9:$S$12)))),ROWS($1:1))),"") -> Uruguay | P60: A_1 | Q60: =TEXT(R60,"00000")&T60 -> 06480Russie | R60: =AB60*1000+AA60*100+Y60*10 -> 6480 | S60: =RANK(R60,$R60:$R63,0) -> 2 | T60: =VLOOKUP(P60,TABLEAU_TEAMS[#All],2,FALSE) -> Russie | U60: =SUMPRODUCT((Teams1=T60)*(Teams1_Score<>""))+SUMPRODUCT((Teams2=T60)*(Teams2_Score<>"")) -> 3 | V60: =SUMPRODUCT((Teams1=T60)*(Teams1_Score>Teams2_Score))+SUMPRODUCT((Teams2=T60)*(Teams2_Score>Teams1_Score)) -> 2 | W60: =SUMPRODUCT((Teams1=T60)*(Teams1_Score=Teams2_Score)*(Teams1_Score<>""))+SUMPRODUCT((Teams2=T60)*(Teams2_Score=Teams1_Score)*(Teams2_Score<>"")) -> 0 | X60: =SUMPRODUCT((Teams1=T60)*(Teams1_Score<Teams2_Score))+SUMPRODUCT((Teams2=T60)*(Teams2_Score<Teams1_Score)) -> 1 | Y60: =SUMPRODUCT((Teams1=T60)*(Teams1_Score))+SUMPRODUCT((Teams2=T60)*(Teams2_Score)) -> 8 | Z60: =SUMPRODUCT((Teams1=T60)*(Teams2_Score))+SUMPRODUCT((Teams2=T60)*(Teams1_Score)) -> 4 | AA60: =Y60-Z60 -> 4 | AB60: =3*V60+W60 -> 6
B61: =IF(ROWS($1:2)<=COUNTIF($S$9:$S$12,1),INDEX($T$9:$T$12,SMALL(IF($S$9:$S$12=1,ROW(INDIRECT("1:"&ROWS($S$9:$S$12)))),ROWS($1:2))),"") ->  | P61: A_2 | Q61: =TEXT(R61,"00000")&T61 -> 02520Arabie Saoudite | R61: =AB61*1000+AA61*100+Y61*10 -> 2520 | S61: =RANK(R61,$R60:$R63,0) -> 3 | T61: =VLOOKUP(P61,TABLEAU_TEAMS[#All],2,FALSE) -> Arabie Saoudite | U61: =SUMPRODUCT((Teams1=T61)*(Teams1_Score<>""))+SUMPRODUCT((Teams2=T61)*(Teams2_Score<>"")) -> 3 | V61: =SUMPRODUCT((Teams1=T61)*(Teams1_Score>Teams2_Score))+SUMPRODUCT((Teams2=T61)*(Teams2_Score>Teams1_Score)) -> 1 | W61: =SUMPRODUCT((Teams1=T61)*(Teams1_Score=Teams2_Score)*(Teams1_Score<>""))+SUMPRODUCT((Teams2=T61)*(Teams2_Score=Teams1_Score)*(Teams2_Score<>"")) -> 0 | X61: =SUMPRODUCT((Teams1=T61)*(Teams1_Score<Teams2_Score))+SUMPRODUCT((Teams2=T61)*(Teams2_Score<Teams1_Score)) -> 2 | Y61: =SUMPRODUCT((Teams1=T61)*(Teams1_Score))+SUMPRODUCT((Teams2=T61)*(Teams2_Score)) -> 2 | Z61: =SUMPRODUCT((Teams1=T61)*(Teams2_Score))+SUMPRODUCT((Teams2=T61)*(Teams1_Score)) -> 7 | AA61: =Y61-Z61 -> -5 | AB61: =3*V61+W61 -> 3
B62: =IF(ROWS($1:3)<=COUNTIF($S$9:$S$12,1),INDEX($T$9:$T$12,SMALL(IF($S$9:$S$12=1,ROW(INDIRECT("1:"&ROWS($S$9:$S$12)))),ROWS($1:3))),"") ->  | P62: A_3 | Q62: =TEXT(R62,"00000")&T62 -> -00380Egypte | R62: =AB62*1000+AA62*100+Y62*10 -> -380 | S62: =RANK(R62,$R60:$R63,0) -> 4 | T62: =VLOOKUP(P62,TABLEAU_TEAMS[#All],2,FALSE) -> Egypte | U62: =SUMPRODUCT((Teams1=T62)*(Teams1_Score<>""))+SUMPRODUCT((Teams2=T62)*(Teams2_Score<>"")) -> 3 | V62: =SUMPRODUCT((Teams1=T62)*(Teams1_Score>Teams2_Score))+SUMPRODUCT((Teams2=T62)*(Teams2_Score>Teams1_Score)) -> 0 | W62: =SUMPRODUCT((Teams1=T62)*(Teams1_Score=Teams2_Score)*(Teams1_Score<>""))+SUMPRODUCT((Teams2=T62)*(Teams2_Score=Teams1_Score)*(Teams2_Score<>"")) -> 0 | X62: =SUMPRODUCT((Teams1=T62)*(Teams1_Score<Teams2_Score))+SUMPRODUCT((Teams2=T62)*(Teams2_Score<Teams1_Score)) -> 3 | Y62: =SUMPRODUCT((Teams1=T62)*(Teams1_Score))+SUMPRODUCT((Teams2=T62)*(Teams2_Score)) -> 2 | Z62: =SUMPRODUCT((Teams1=T62)*(Teams2_Score))+SUMPRODUCT((Teams2=T62)*(Teams1_Score)) -> 6 | AA62: -4 | AB62: 0
B63: =IF(ROWS($1:4)<=COUNTIF($S$9:$S$12,1),INDEX($T$9:$T$12,SMALL(IF($S$9:$S$12=1,ROW(INDIRECT("1:"&ROWS($S$9:$S$12)))),ROWS($1:4))),"") ->  | P63: A_4 | Q63: =TEXT(R63,"00000")&T63 -> 09550Uruguay | R63: =AB63*1000+AA63*100+Y63*10 -> 9550 | S63: =RANK(R63,$R60:$R63,0) -> 1 | T63: =VLOOKUP(P63,TABLEAU_TEAMS[#All],2,FALSE) -> Uruguay | U63: =SUMPRODUCT((Teams1=T63)*(Teams1_Score<>""))+SUMPRODUCT((Teams2=T63)*(Teams2_Score<>"")) -> 3 | V63: =SUMPRODUCT((Teams1=T63)*(Teams1_Score>Teams2_Score))+SUMPRODUCT((Teams2=T63)*(Teams2_Score>Teams1_Score)) -> 3 | W63: =SUMPRODUCT((Teams1=T63)*(Teams1_Score=Teams2_Score)*(Teams1_Score<>""))+SUMPRODUCT((Teams2=T63)*(Teams2_Score=Teams1_Score)*(Teams2_Score<>"")) -> 0 | X63: =SUMPRODUCT((Teams1=T63)*(Teams1_Score<Teams2_Score))+SUMPRODUCT((Teams2=T63)*(Teams2_Score<Teams1_Score)) -> 0 | Y63: =SUMPRODUCT((Teams1=T63)*(Teams1_Score))+SUMPRODUCT((Teams2=T63)*(Teams2_Score)) -> 5 | Z63: =SUMPRODUCT((Teams1=T63)*(Teams2_Score))+SUMPRODUCT((Teams2=T63)*(Teams1_Score)) -> 0 | AA63: 5 | AB63: 9
B64: Tirage au sort A2
B65: =IF(COUNTIF($S$9:$S$12,1)>1,IF(ROWS($1:1)<=COUNTIF($S$9:$S$12,1),INDEX($T$9:$T$12,SMALL(IF($S$9:$S$12=1,ROW(INDIRECT("1:"&ROWS($S$9:$S$12)))),ROWS($1:1))),""),IF(COUNTIF($S$9:$S$12,2)>1,IF(ROWS($1:1)<=COUNTIF($S$9:$S$12,2),INDEX($T$9:$T$12,SMALL(IF($S$9:$S$12=2,ROW(INDIRECT("1:"&ROWS($S$9:$S$12)))),ROWS($1:1))),""))) -> FALSE | S65: Rg | T65: Groupe B | U65: MJ | V65: G | W65: N | X65: P | Y65: BP | Z65: BC | AA65: Pts | AB65: Pts
B66: =IF(COUNTIF($S$9:$S$12,1)>1,IF(ROWS($1:2)<=COUNTIF($S$9:$S$12,1),INDEX($T$9:$T$12,SMALL(IF($S$9:$S$12=1,ROW(INDIRECT("1:"&ROWS($S$9:$S$12)))),ROWS($1:2))),""),IF(COUNTIF($S$9:$S$12,2)>1,IF(ROWS($1:2)<=COUNTIF($S$9:$S$12,2),INDEX($T$9:$T$12,SMALL(IF($S$9:$S$12=2,ROW(INDIRECT("1:"&ROWS($S$9:$S$12)))),ROWS($1:2))),""))) -> FALSE | P66: B_1 | Q66: =TEXT(R66,"00000")&T66 -> 00820Maroc | R66: =AB66*1000+AA66*100+Y66*10 -> 820 | S66: =RANK(R66,$R66:$R69,0) -> 4 | T66: =VLOOKUP(P66,TABLEAU_TEAMS[#All],2,FALSE) -> Maroc | U66: =SUMPRODUCT((Teams1=T66)*(Teams1_Score<>""))+SUMPRODUCT((Teams2=T66)*(Teams2_Score<>"")) -> 3 | V66: =SUMPRODUCT((Teams1=T66)*(Teams1_Score>Teams2_Score))+SUMPRODUCT((Teams2=T66)*(Teams2_Score>Teams1_Score)) -> 0 | W66: =SUMPRODUCT((Teams1=T66)*(Teams1_Score=Teams2_Score)*(Teams1_Score<>""))+SUMPRODUCT((Teams2=T66)*(Teams2_Score=Teams1_Score)*(Teams2_Score<>"")) -> 1 | X66: =SUMPRODUCT((Teams1=T66)*(Teams1_Score<Teams2_Score))+SUMPRODUCT((Teams2=T66)*(Teams2_Score<Teams1_Score)) -> 2 | Y66: =SUMPRODUCT((Teams1=T66)*(Teams1_Score))+SUMPRODUCT((Teams2=T66)*(Teams2_Score)) -> 2 | Z66: =SUMPRODUCT((Teams1=T66)*(Teams2_Score))+SUMPRODUCT((Teams2=T66)*(Teams1_Score)) -> 4 | AA66: =Y66-Z66 -> -2 | AB66: =3*V66+W66 -> 1
B67: =IF(COUNTIF($S$9:$S$12,1)>1,IF(ROWS($1:3)<=COUNTIF($S$9:$S$12,1),INDEX($T$9:$T$12,SMALL(IF($S$9:$S$12=1,ROW(INDIRECT("1:"&ROWS($S$9:$S$12)))),ROWS($1:3))),""),IF(COUNTIF($S$9:$S$12,2)>1,IF(ROWS($1:3)<=COUNTIF($S$9:$S$12,2),INDEX($T$9:$T$12,SMALL(IF($S$9:$S$12=2,ROW(INDIRECT("1:"&ROWS($S$9:$S$12)))),ROWS($1:3))),""))) -> FALSE | P67: B_2 | Q67: =TEXT(R67,"00000")&T67 -> 04020RI Iran | R67: =AB67*1000+AA67*100+Y67*10 -> 4020 | S67: =RANK(R67,$R66:$R69,0) -> 3 | T67: =VLOOKUP(P67,TABLEAU_TEAMS[#All],2,FALSE) -> RI Iran | U67: =SUMPRODUCT((Teams1=T67)*(Teams1_Score<>""))+SUMPRODUCT((Teams2=T67)*(Teams2_Score<>"")) -> 3 | V67: =SUMPRODUCT((Teams1=T67)*(Teams1_Score>Teams2_Score))+SUMPRODUCT((Teams2=T67)*(Teams2_Score>Teams1_Score)) -> 1 | W67: =SUMPRODUCT((Teams1=T67)*(Teams1_Score=Teams2_Score)*(Teams1_Score<>""))+SUMPRODUCT((Teams2=T67)*(Teams2_Score=Teams1_Score)*(Teams2_Score<>"")) -> 1 | X67: =SUMPRODUCT((Teams1=T67)*(Teams1_Score<Teams2_Score))+SUMPRODUCT((Teams2=T67)*(Teams2_Score<Teams1_Score)) -> 1 | Y67: =SUMPRODUCT((Teams1=T67)*(Teams1_Score))+SUMPRODUCT((Teams2=T67)*(Teams2_Score)) -> 2 | Z67: =SUMPRODUCT((Teams1=T67)*(Teams2_Score))+SUMPRODUCT((Teams2=T67)*(Teams1_Score)) -> 2 | AA67: 0 | AB67: 4
B68: =IF(COUNTIF($S$9:$S$12,1)>1,IF(ROWS($1:4)<=COUNTIF($S$9:$S$12,1),INDEX($T$9:$T$12,SMALL(IF($S$9:$S$12=1,ROW(INDIRECT("1:"&ROWS($S$9:$S$12)))),ROWS($1:4))),""),IF(COUNTIF($S$9:$S$12,2)>1,IF(ROWS($1:4)<=COUNTIF($S$9:$S$12,2),INDEX($T$9:$T$12,SMALL(IF($S$9:$S$12=2,ROW(INDIRECT("1:"&ROWS($S$9:$S$12)))),ROWS($1:4))),""))) -> FALSE | P68: B_3 | Q68: =TEXT(R68,"00000")&T68 -> 05150Portugal | R68: =AB68*1000+AA68*100+Y68*10 -> 5150 | S68: =RANK(R68,$R66:$R69,0) -> 2 | T68: =VLOOKUP(P68,TABLEAU_TEAMS[#All],2,FALSE) -> Portugal | U68: =SUMPRODUCT((Teams1=T68)*(Teams1_Score<>""))+SUMPRODUCT((Teams2=T68)*(Teams2_Score<>"")) -> 3 | V68: =SUMPRODUCT((Teams1=T68)*(Teams1_Score>Teams2_Score))+SUMPRODUCT((Teams2=T68)*(Teams2_Score>Teams1_Score)) -> 1 | W68: =SUMPRODUCT((Teams1=T68)*(Teams1_Score=Teams2_Score)*(Teams1_Score<>""))+SUMPRODUCT((Teams2=T68)*(Teams2_Score=Teams1_Score)*(Teams2_Score<>"")) -> 2 | X68: =SUMPRODUCT((Teams1=T68)*(Teams1_Score<Teams2_Score))+SUMPRODUCT((Teams2=T68)*(Teams2_Score<Teams1_Score)) -> 0 | Y68: =SUMPRODUCT((Teams1=T68)*(Teams1_Score))+SUMPRODUCT((Teams2=T68)*(Teams2_Score)) -> 5 | Z68: =SUMPRODUCT((Teams1=T68)*(Teams2_Score))+SUMPRODUCT((Teams2=T68)*(Teams1_Score)) -> 4 | AA68: 1 | AB68: 5
B69: Tirage au sort B1 | P69: B_4 | Q69: =TEXT(R69,"00000")&T69 -> 05160Espagne | R69: =AB69*1000+AA69*100+Y69*10 -> 5160 | S69: =RANK(R69,$R66:$R69,0) -> 1 | T69: =VLOOKUP(P69,TABLEAU_TEAMS[#All],2,FALSE) -> Espagne | U69: =SUMPRODUCT((Teams1=T69)*(Teams1_Score<>""))+SUMPRODUCT((Teams2=T69)*(Teams2_Score<>"")) -> 3 | V69: =SUMPRODUCT((Teams1=T69)*(Teams1_Score>Teams2_Score))+SUMPRODUCT((Teams2=T69)*(Teams2_Score>Teams1_Score)) -> 1 | W69: =SUMPRODUCT((Teams1=T69)*(Teams1_Score=Teams2_Score)*(Teams1_Score<>""))+SUMPRODUCT((Teams2=T69)*(Teams2_Score=Teams1_Score)*(Teams2_Score<>"")) -> 2 | X69: =SUMPRODUCT((Teams1=T69)*(Teams1_Score<Teams2_Score))+SUMPRODUCT((Teams2=T69)*(Teams2_Score<Teams1_Score)) -> 0 | Y69: =SUMPRODUCT((Teams1=T69)*(Teams1_Score))+SUMPRODUCT((Teams2=T69)*(Teams2_Score)) -> 6 | Z69: =SUMPRODUCT((Teams1=T69)*(Teams2_Score))+SUMPRODUCT((Teams2=T69)*(Teams1_Score)) -> 5 | AA69: 1 | AB69: 5
B70: =IF(ROWS($1:1)<=COUNTIF($S$15:$S$18,1),INDEX($T$15:$T$18,SMALL(IF($S$15:$S$18=1,ROW(INDIRECT("1:"&ROWS($S$15:$S$18)))),ROWS($1:1))),"") -> Espagne
B71: =IF(ROWS($1:2)<=COUNTIF($S$15:$S$18,1),INDEX($T$15:$T$18,SMALL(IF($S$15:$S$18=1,ROW(INDIRECT("1:"&ROWS($S$15:$S$18)))),ROWS($1:2))),"") ->  | S71: Rg | T71: Groupe C | U71: MJ | V71: G | W71: N | X71: P | Y71: BP | Z71: BC | AA71: Pts | AB71: Pts
B72: =IF(ROWS($1:3)<=COUNTIF($S$15:$S$18,1),INDEX($T$15:$T$18,SMALL(IF($S$15:$S$18=1,ROW(INDIRECT("1:"&ROWS($S$15:$S$18)))),ROWS($1:3))),"") ->  | P72: C_1 | Q72: =TEXT(R72,"00000")&T72 -> 07230France | R72: =AB72*1000+AA72*100+Y72*10 -> 7230 | S72: =RANK(R72,$R72:$R75,0) -> 1 | T72: =VLOOKUP(P72,TABLEAU_TEAMS[#All],2,FALSE) -> France | U72: =SUMPRODUCT((Teams1=T72)*(Teams1_Score<>""))+SUMPRODUCT((Teams2=T72)*(Teams2_Score<>"")) -> 3 | V72: =SUMPRODUCT((Teams1=T72)*(Teams1_Score>Teams2_Score))+SUMPRODUCT((Teams2=T72)*(Teams2_Score>Teams1_Score)) -> 2 | W72: =SUMPRODUCT((Teams1=T72)*(Teams1_Score=Teams2_Score)*(Teams1_Score<>""))+SUMPRODUCT((Teams2=T72)*(Teams2_Score=Teams1_Score)*(Teams2_Score<>"")) -> 1 | X72: =SUMPRODUCT((Teams1=T72)*(Teams1_Score<Teams2_Score))+SUMPRODUCT((Teams2=T72)*(Teams2_Score<Teams1_Score)) -> 0 | Y72: =SUMPRODUCT((Teams1=T72)*(Teams1_Score))+SUMPRODUCT((Teams2=T72)*(Teams2_Score)) -> 3 | Z72: =SUMPRODUCT((Teams1=T72)*(Teams2_Score))+SUMPRODUCT((Teams2=T72)*(Teams1_Score)) -> 1 | AA72: =Y72-Z72 -> 2 | AB72: =3*V72+W72 -> 7
B73: =IF(ROWS($1:4)<=COUNTIF($S$15:$S$18,1),INDEX($T$15:$T$18,SMALL(IF($S$15:$S$18=1,ROW(INDIRECT("1:"&ROWS($S$15:$S$18)))),ROWS($1:4))),"") ->  | P73: C_2 | Q73: =TEXT(R73,"00000")&T73 -> 00720Australie | R73: =AB73*1000+AA73*100+Y73*10 -> 720 | S73: =RANK(R73,$R72:$R75,0) -> 4 | T73: =VLOOKUP(P73,TABLEAU_TEAMS[#All],2,FALSE) -> Australie | U73: =SUMPRODUCT((Teams1=T73)*(Teams1_Score<>""))+SUMPRODUCT((Teams2=T73)*(Teams2_Score<>"")) -> 3 | V73: =SUMPRODUCT((Teams1=T73)*(Teams1_Score>Teams2_Score))+SUMPRODUCT((Teams2=T73)*(Teams2_Score>Teams1_Score)) -> 0 | W73: =SUMPRODUCT((Teams1=T73)*(Teams1_Score=Teams2_Score)*(Teams1_Score<>""))+SUMPRODUCT((Teams2=T73)*(Teams2_Score=Teams1_Score)*(Teams2_Score<>"")) -> 1 | X73: =SUMPRODUCT((Teams1=T73)*(Teams1_Score<Teams2_Score))+SUMPRODUCT((Teams2=T73)*(Teams2_Score<Teams1_Score)) -> 2 | Y73: =SUMPRODUCT((Teams1=T73)*(Teams1_Score))+SUMPRODUCT((Teams2=T73)*(Teams2_Score)) -> 2 | Z73: =SUMPRODUCT((Teams1=T73)*(Teams2_Score))+SUMPRODUCT((Teams2=T73)*(Teams1_Score)) -> 5 | AA73: -3 | AB73: 1
B74: Tirage au sort B2 | P74: C_3 | Q74: =TEXT(R74,"00000")&T74 -> 03020Pérou | R74: =AB74*1000+AA74*100+Y74*10 -> 3020 | S74: =RANK(R74,$R72:$R75,0) -> 3 | T74: =VLOOKUP(P74,TABLEAU_TEAMS[#All],2,FALSE) -> Pérou | U74: =SUMPRODUCT((Teams1=T74)*(Teams1_Score<>""))+SUMPRODUCT((Teams2=T74)*(Teams2_Score<>"")) -> 3 | V74: =SUMPRODUCT((Teams1=T74)*(Teams1_Score>Teams2_Score))+SUMPRODUCT((Teams2=T74)*(Teams2_Score>Teams1_Score)) -> 1 | W74: =SUMPRODUCT((Teams1=T74)*(Teams1_Score=Teams2_Score)*(Teams1_Score<>""))+SUMPRODUCT((Teams2=T74)*(Teams2_Score=Teams1_Score)*(Teams2_Score<>"")) -> 0 | X74: =SUMPRODUCT((Teams1=T74)*(Teams1_Score<Teams2_Score))+SUMPRODUCT((Teams2=T74)*(Teams2_Score<Teams1_Score)) -> 2 | Y74: =SUMPRODUCT((Teams1=T74)*(Teams1_Score))+SUMPRODUCT((Teams2=T74)*(Teams2_Score)) -> 2 | Z74: =SUMPRODUCT((Teams1=T74)*(Teams2_Score))+SUMPRODUCT((Teams2=T74)*(Teams1_Score)) -> 2 | AA74: 0 | AB74: 3
B75: =IF(COUNTIF($S$15:$S$18,1)>1,IF(ROWS($1:1)<=COUNTIF($S$15:$S$18,1),INDEX($T$15:$T$18,SMALL(IF($S$15:$S$18=1,ROW(INDIRECT("1:"&ROWS($S$15:$S$18)))),ROWS($1:1))),""),IF(COUNTIF($S$15:$S$18,2)>1,IF(ROWS($1:1)<=COUNTIF($S$15:$S$18,2),INDEX($T$15:$T$18,SMALL(IF($S$15:$S$18=2,ROW(INDIRECT("1:"&ROWS($S$15:$S$18)))),ROWS($1:1))),""))) -> FALSE | P75: C_4 | Q75: =TEXT(R75,"00000")&T75 -> 05120Danemark | R75: =AB75*1000+AA75*100+Y75*10 -> 5120 | S75: =RANK(R75,$R72:$R75,0) -> 2 | T75: =VLOOKUP(P75,TABLEAU_TEAMS[#All],2,FALSE) -> Danemark | U75: =SUMPRODUCT((Teams1=T75)*(Teams1_Score<>""))+SUMPRODUCT((Teams2=T75)*(Teams2_Score<>"")) -> 3 | V75: =SUMPRODUCT((Teams1=T75)*(Teams1_Score>Teams2_Score))+SUMPRODUCT((Teams2=T75)*(Teams2_Score>Teams1_Score)) -> 1 | W75: =SUMPRODUCT((Teams1=T75)*(Teams1_Score=Teams2_Score)*(Teams1_Score<>""))+SUMPRODUCT((Teams2=T75)*(Teams2_Score=Teams1_Score)*(Teams2_Score<>"")) -> 2 | X75: =SUMPRODUCT((Teams1=T75)*(Teams1_Score<Teams2_Score))+SUMPRODUCT((Teams2=T75)*(Teams2_Score<Teams1_Score)) -> 0 | Y75: =SUMPRODUCT((Teams1=T75)*(Teams1_Score))+SUMPRODUCT((Teams2=T75)*(Teams2_Score)) -> 2 | Z75: =SUMPRODUCT((Teams1=T75)*(Teams2_Score))+SUMPRODUCT((Teams2=T75)*(Teams1_Score)) -> 1 | AA75: 1 | AB75: 5
B76: =IF(COUNTIF($S$15:$S$18,1)>1,IF(ROWS($1:2)<=COUNTIF($S$15:$S$18,1),INDEX($T$15:$T$18,SMALL(IF($S$15:$S$18=1,ROW(INDIRECT("1:"&ROWS($S$15:$S$18)))),ROWS($1:2))),""),IF(COUNTIF($S$15:$S$18,2)>1,IF(ROWS($1:2)<=COUNTIF($S$15:$S$18,2),INDEX($T$15:$T$18,SMALL(IF($S$15:$S$18=2,ROW(INDIRECT("1:"&ROWS($S$15:$S$18)))),ROWS($1:2))),""))) -> FALSE
B77: =IF(COUNTIF($S$15:$S$18,1)>1,IF(ROWS($1:3)<=COUNTIF($S$15:$S$18,1),INDEX($T$15:$T$18,SMALL(IF($S$15:$S$18=1,ROW(INDIRECT("1:"&ROWS($S$15:$S$18)))),ROWS($1:3))),""),IF(COUNTIF($S$15:$S$18,2)>1,IF(ROWS($1:3)<=COUNTIF($S$15:$S$18,2),INDEX($T$15:$T$18,SMALL(IF($S$15:$S$18=2,ROW(INDIRECT("1:"&ROWS($S$15:$S$18)))),ROWS($1:3))),""))) -> FALSE | S77: Rg | T77: Groupe D | U77: MJ | V77: G | W77: N | X77: P | Y77: BP | Z77: BC | AA77: Pts | AB77: Pts
B78: =IF(COUNTIF($S$15:$S$18,1)>1,IF(ROWS($1:4)<=COUNTIF($S$15:$S$18,1),INDEX($T$15:$T$18,SMALL(IF($S$15:$S$18=1,ROW(INDIRECT("1:"&ROWS($S$15:$S$18)))),ROWS($1:4))),""),IF(COUNTIF($S$15:$S$18,2)>1,IF(ROWS($1:4)<=COUNTIF($S$15:$S$18,2),INDEX($T$15:$T$18,SMALL(IF($S$15:$S$18=2,ROW(INDIRECT("1:"&ROWS($S$15:$S$18)))),ROWS($1:4))),""))) -> FALSE | P78: D_1 | Q78: =TEXT(R78,"00000")&T78 -> 03830Argentine | R78: =AB78*1000+AA78*100+Y78*10 -> 3830 | S78: =RANK(R78,$R78:$R81,0) -> 2 | T78: =VLOOKUP(P78,TABLEAU_TEAMS[#All],2,FALSE) -> Argentine | U78: =SUMPRODUCT((Teams1=T78)*(Teams1_Score<>""))+SUMPRODUCT((Teams2=T78)*(Teams2_Score<>"")) -> 3 | V78: =SUMPRODUCT((Teams1=T78)*(Teams1_Score>Teams2_Score))+SUMPRODUCT((Teams2=T78)*(Teams2_Score>Teams1_Score)) -> 1 | W78: =SUMPRODUCT((Teams1=T78)*(Teams1_Score=Teams2_Score)*(Teams1_Score<>""))+SUMPRODUCT((Teams2=T78)*(Teams2_Score=Teams1_Score)*(Teams2_Score<>"")) -> 1 | X78: =SUMPRODUCT((Teams1=T78)*(Teams1_Score<Teams2_Score))+SUMPRODUCT((Teams2=T78)*(Teams2_Score<Teams1_Score)) -> 1 | Y78: =SUMPRODUCT((Teams1=T78)*(Teams1_Score))+SUMPRODUCT((Teams2=T78)*(Teams2_Score)) -> 3 | Z78: =SUMPRODUCT((Teams1=T78)*(Teams2_Score))+SUMPRODUCT((Teams2=T78)*(Teams1_Score)) -> 5 | AA78: =Y78-Z78 -> -2 | AB78: =3*V78+W78 -> 4
B79: Tirage au sort C1 | P79: D_2 | Q79: =TEXT(R79,"00000")&T79 -> 00720Islande | R79: =AB79*1000+AA79*100+Y79*10 -> 720 | S79: =RANK(R79,$R78:$R81,0) -> 4 | T79: =VLOOKUP(P79,TABLEAU_TEAMS[#All],2,FALSE) -> Islande | U79: =SUMPRODUCT((Teams1=T79)*(Teams1_Score<>""))+SUMPRODUCT((Teams2=T79)*(Teams2_Score<>"")) -> 3 | V79: =SUMPRODUCT((Teams1=T79)*(Teams1_Score>Teams2_Score))+SUMPRODUCT((Teams2=T79)*(Teams2_Score>Teams1_Score)) -> 0 | W79: =SUMPRODUCT((Teams1=T79)*(Teams1_Score=Teams2_Score)*(Teams1_Score<>""))+SUMPRODUCT((Teams2=T79)*(Teams2_Score=Teams1_Score)*(Teams2_Score<>"")) -> 1 | X79: =SUMPRODUCT((Teams1=T79)*(Teams1_Score<Teams2_Score))+SUMPRODUCT((Teams2=T79)*(Teams2_Score<Teams1_Score)) -> 2 | Y79: =SUMPRODUCT((Teams1=T79)*(Teams1_Score))+SUMPRODUCT((Teams2=T79)*(Teams2_Score)) -> 2 | Z79: =SUMPRODUCT((Teams1=T79)*(Teams2_Score))+SUMPRODUCT((Teams2=T79)*(Teams1_Score)) -> 5 | AA79: -3 | AB79: 1
B80: =IF(ROWS($1:1)<=COUNTIF($S$21:$S$24,1),INDEX($T$21:$T$24,SMALL(IF($S$21:$S$24=1,ROW(INDIRECT("1:"&ROWS($S$21:$S$24)))),ROWS($1:1))),"") -> France | P80: D_3 | Q80: =TEXT(R80,"00000")&T80 -> 09670Croatie | R80: =AB80*1000+AA80*100+Y80*10 -> 9670 | S80: =RANK(R80,$R78:$R81,0) -> 1 | T80: =VLOOKUP(P80,TABLEAU_TEAMS[#All],2,FALSE) -> Croatie | U80: =SUMPRODUCT((Teams1=T80)*(Teams1_Score<>""))+SUMPRODUCT((Teams2=T80)*(Teams2_Score<>"")) -> 3 | V80: =SUMPRODUCT((Teams1=T80)*(Teams1_Score>Teams2_Score))+SUMPRODUCT((Teams2=T80)*(Teams2_Score>Teams1_Score)) -> 3 | W80: =SUMPRODUCT((Teams1=T80)*(Teams1_Score=Teams2_Score)*(Teams1_Score<>""))+SUMPRODUCT((Teams2=T80)*(Teams2_Score=Teams1_Score)*(Teams2_Score<>"")) -> 0 | X80: =SUMPRODUCT((Teams1=T80)*(Teams1_Score<Teams2_Score))+SUMPRODUCT((Teams2=T80)*(Teams2_Score<Teams1_Score)) -> 0 | Y80: =SUMPRODUCT((Teams1=T80)*(Teams1_Score))+SUMPRODUCT((Teams2=T80)*(Teams2_Score)) -> 7 | Z80: =SUMPRODUCT((Teams1=T80)*(Teams2_Score))+SUMPRODUCT((Teams2=T80)*(Teams1_Score)) -> 1 | AA80: 6 | AB80: 9
B81: =IF(ROWS($1:2)<=COUNTIF($S$21:$S$24,1),INDEX($T$21:$T$24,SMALL(IF($S$21:$S$24=1,ROW(INDIRECT("1:"&ROWS($S$21:$S$24)))),ROWS($1:2))),"") ->  | P81: D_4 | Q81: =TEXT(R81,"00000")&T81 -> 02930Nigeria | R81: =AB81*1000+AA81*100+Y81*10 -> 2930 | S81: =RANK(R81,$R78:$R81,0) -> 3 | T81: =VLOOKUP(P81,TABLEAU_TEAMS[#All],2,FALSE) -> Nigeria | U81: =SUMPRODUCT((Teams1=T81)*(Teams1_Score<>""))+SUMPRODUCT((Teams2=T81)*(Teams2_Score<>"")) -> 3 | V81: =SUMPRODUCT((Teams1=T81)*(Teams1_Score>Teams2_Score))+SUMPRODUCT((Teams2=T81)*(Teams2_Score>Teams1_Score)) -> 1 | W81: =SUMPRODUCT((Teams1=T81)*(Teams1_Score=Teams2_Score)*(Teams1_Score<>""))+SUMPRODUCT((Teams2=T81)*(Teams2_Score=Teams1_Score)*(Teams2_Score<>"")) -> 0 | X81: =SUMPRODUCT((Teams1=T81)*(Teams1_Score<Teams2_Score))+SUMPRODUCT((Teams2=T81)*(Teams2_Score<Teams1_Score)) -> 2 | Y81: =SUMPRODUCT((Teams1=T81)*(Teams1_Score))+SUMPRODUCT((Teams2=T81)*(Teams2_Score)) -> 3 | Z81: =SUMPRODUCT((Teams1=T81)*(Teams2_Score))+SUMPRODUCT((Teams2=T81)*(Teams1_Score)) -> 4 | AA81: -1 | AB81: 3
B82: =IF(ROWS($1:3)<=COUNTIF($S$21:$S$24,1),INDEX($T$21:$T$24,SMALL(IF($S$21:$S$24=1,ROW(INDIRECT("1:"&ROWS($S$21:$S$24)))),ROWS($1:3))),"") -> 
B83: =IF(ROWS($1:4)<=COUNTIF($S$21:$S$24,1),INDEX($T$21:$T$24,SMALL(IF($S$21:$S$24=1,ROW(INDIRECT("1:"&ROWS($S$21:$S$24)))),ROWS($1:4))),"") ->  | S83: Rg | T83: Groupe E | U83: MJ | V83: G | W83: N | X83: P | Y83: BP | Z83: BC | AA83: Pts | AB83: Pts
B84: Tirage au sort C2 | P84: E_1 | Q84: =TEXT(R84,"00000")&T84 -> 00720Costa Rica | R84: =AB84*1000+AA84*100+Y84*10 -> 720 | S84: =RANK(R84,$R84:$R87,0) -> 4 | T84: =VLOOKUP(P84,TABLEAU_TEAMS[#All],2,FALSE) -> Costa Rica | U84: =SUMPRODUCT((Teams1=T84)*(Teams1_Score<>""))+SUMPRODUCT((Teams2=T84)*(Teams2_Score<>"")) -> 3 | V84: =SUMPRODUCT((Teams1=T84)*(Teams1_Score>Teams2_Score))+SUMPRODUCT((Teams2=T84)*(Teams2_Score>Teams1_Score)) -> 0 | W84: =SUMPRODUCT((Teams1=T84)*(Teams1_Score=Teams2_Score)*(Teams1_Score<>""))+SUMPRODUCT((Teams2=T84)*(Teams2_Score=Teams1_Score)*(Teams2_Score<>"")) -> 1 | X84: =SUMPRODUCT((Teams1=T84)*(Teams1_Score<Teams2_Score))+SUMPRODUCT((Teams2=T84)*(Teams2_Score<Teams1_Score)) -> 2 | Y84: =SUMPRODUCT((Teams1=T84)*(Teams1_Score))+SUMPRODUCT((Teams2=T84)*(Teams2_Score)) -> 2 | Z84: =SUMPRODUCT((Teams1=T84)*(Teams2_Score))+SUMPRODUCT((Teams2=T84)*(Teams1_Score)) -> 5 | AA84: =Y84-Z84 -> -3 | AB84: =3*V84+W84 -> 1
B85: =IF(COUNTIF($S$21:$S$24,1)>1,IF(ROWS($1:1)<=COUNTIF($S$21:$S$24,1),INDEX($T$21:$T$24,SMALL(IF($S$21:$S$24=1,ROW(INDIRECT("1:"&ROWS($S$21:$S$24)))),ROWS($1:1))),""),IF(COUNTIF($S$21:$S$24,2)>1,IF(ROWS($1:1)<=COUNTIF($S$21:$S$24,2),INDEX($T$21:$T$24,SMALL(IF($S$21:$S$24=2,ROW(INDIRECT("1:"&ROWS($S$21:$S$24)))),ROWS($1:1))),""))) -> FALSE | P85: E_2 | Q85: =TEXT(R85,"00000")&T85 -> 02820Serbie | R85: =AB85*1000+AA85*100+Y85*10 -> 2820 | S85: =RANK(R85,$R84:$R87,0) -> 3 | T85: =VLOOKUP(P85,TABLEAU_TEAMS[#All],2,FALSE) -> Serbie | U85: =SUMPRODUCT((Teams1=T85)*(Teams1_Score<>""))+SUMPRODUCT((Teams2=T85)*(Teams2_Score<>"")) -> 3 | V85: =SUMPRODUCT((Teams1=T85)*(Teams1_Score>Teams2_Score))+SUMPRODUCT((Teams2=T85)*(Teams2_Score>Teams1_Score)) -> 1 | W85: =SUMPRODUCT((Teams1=T85)*(Teams1_Score=Teams2_Score)*(Teams1_Score<>""))+SUMPRODUCT((Teams2=T85)*(Teams2_Score=Teams1_Score)*(Teams2_Score<>"")) -> 0 | X85: =SUMPRODUCT((Teams1=T85)*(Teams1_Score<Teams2_Score))+SUMPRODUCT((Teams2=T85)*(Teams2_Score<Teams1_Score)) -> 2 | Y85: =SUMPRODUCT((Teams1=T85)*(Teams1_Score))+SUMPRODUCT((Teams2=T85)*(Teams2_Score)) -> 2 | Z85: =SUMPRODUCT((Teams1=T85)*(Teams2_Score))+SUMPRODUCT((Teams2=T85)*(Teams1_Score)) -> 4 | AA85: -2 | AB85: 3
B86: =IF(COUNTIF($S$21:$S$24,1)>1,IF(ROWS($1:2)<=COUNTIF($S$21:$S$24,1),INDEX($T$21:$T$24,SMALL(IF($S$21:$S$24=1,ROW(INDIRECT("1:"&ROWS($S$21:$S$24)))),ROWS($1:2))),""),IF(COUNTIF($S$21:$S$24,2)>1,IF(ROWS($1:2)<=COUNTIF($S$21:$S$24,2),INDEX($T$21:$T$24,SMALL(IF($S$21:$S$24=2,ROW(INDIRECT("1:"&ROWS($S$21:$S$24)))),ROWS($1:2))),""))) -> FALSE | P86: E_3 | Q86: =TEXT(R86,"00000")&T86 -> 07450Brésil | R86: =AB86*1000+AA86*100+Y86*10 -> 7450 | S86: =RANK(R86,$R84:$R87,0) -> 1 | T86: =VLOOKUP(P86,TABLEAU_TEAMS[#All],2,FALSE) -> Brésil | U86: =SUMPRODUCT((Teams1=T86)*(Teams1_Score<>""))+SUMPRODUCT((Teams2=T86)*(Teams2_Score<>"")) -> 3 | V86: =SUMPRODUCT((Teams1=T86)*(Teams1_Score>Teams2_Score))+SUMPRODUCT((Teams2=T86)*(Teams2_Score>Teams1_Score)) -> 2 | W86: =SUMPRODUCT((Teams1=T86)*(Teams1_Score=Teams2_Score)*(Teams1_Score<>""))+SUMPRODUCT((Teams2=T86)*(Teams2_Score=Teams1_Score)*(Teams2_Score<>"")) -> 1 | X86: =SUMPRODUCT((Teams1=T86)*(Teams1_Score<Teams2_Score))+SUMPRODUCT((Teams2=T86)*(Teams2_Score<Teams1_Score)) -> 0 | Y86: =SUMPRODUCT((Teams1=T86)*(Teams1_Score))+SUMPRODUCT((Teams2=T86)*(Teams2_Score)) -> 5 | Z86: =SUMPRODUCT((Teams1=T86)*(Teams2_Score))+SUMPRODUCT((Teams2=T86)*(Teams1_Score)) -> 1 | AA86: 4 | AB86: 7
B87: =IF(COUNTIF($S$21:$S$24,1)>1,IF(ROWS($1:3)<=COUNTIF($S$21:$S$24,1),INDEX($T$21:$T$24,SMALL(IF($S$21:$S$24=1,ROW(INDIRECT("1:"&ROWS($S$21:$S$24)))),ROWS($1:3))),""),IF(COUNTIF($S$21:$S$24,2)>1,IF(ROWS($1:3)<=COUNTIF($S$21:$S$24,2),INDEX($T$21:$T$24,SMALL(IF($S$21:$S$24=2,ROW(INDIRECT("1:"&ROWS($S$21:$S$24)))),ROWS($1:3))),""))) -> FALSE | P87: E_4 | Q87: =TEXT(R87,"00000")&T87 -> 05150Suisse | R87: =AB87*1000+AA87*100+Y87*10 -> 5150 | S87: =RANK(R87,$R84:$R87,0) -> 2 | T87: =VLOOKUP(P87,TABLEAU_TEAMS[#All],2,FALSE) -> Suisse | U87: =SUMPRODUCT((Teams1=T87)*(Teams1_Score<>""))+SUMPRODUCT((Teams2=T87)*(Teams2_Score<>"")) -> 3 | V87: =SUMPRODUCT((Teams1=T87)*(Teams1_Score>Teams2_Score))+SUMPRODUCT((Teams2=T87)*(Teams2_Score>Teams1_Score)) -> 1 | W87: =SUMPRODUCT((Teams1=T87)*(Teams1_Score=Teams2_Score)*(Teams1_Score<>""))+SUMPRODUCT((Teams2=T87)*(Teams2_Score=Teams1_Score)*(Teams2_Score<>"")) -> 2 | X87: =SUMPRODUCT((Teams1=T87)*(Teams1_Score<Teams2_Score))+SUMPRODUCT((Teams2=T87)*(Teams2_Score<Teams1_Score)) -> 0 | Y87: =SUMPRODUCT((Teams1=T87)*(Teams1_Score))+SUMPRODUCT((Teams2=T87)*(Teams2_Score)) -> 5 | Z87: =SUMPRODUCT((Teams1=T87)*(Teams2_Score))+SUMPRODUCT((Teams2=T87)*(Teams1_Score)) -> 4 | AA87: 1 | AB87: 5
B88: =IF(COUNTIF($S$21:$S$24,1)>1,IF(ROWS($1:4)<=COUNTIF($S$21:$S$24,1),INDEX($T$21:$T$24,SMALL(IF($S$21:$S$24=1,ROW(INDIRECT("1:"&ROWS($S$21:$S$24)))),ROWS($1:4))),""),IF(COUNTIF($S$21:$S$24,2)>1,IF(ROWS($1:4)<=COUNTIF($S$21:$S$24,2),INDEX($T$21:$T$24,SMALL(IF($S$21:$S$24=2,ROW(INDIRECT("1:"&ROWS($S$21:$S$24)))),ROWS($1:4))),""))) -> FALSE
B89: Tirage au sort D1 | S89: Rg | T89: Groupe F | U89: MJ | V89: G | W89: N | X89: P | Y89: BP | Z89: BC | AA89: Pts | AB89: Pts
B90: =IF(ROWS($1:1)<=COUNTIF($S$27:$S$30,1),INDEX($T$27:$T$30,SMALL(IF($S$27:$S$30=1,ROW(INDIRECT("1:"&ROWS($S$27:$S$30)))),ROWS($1:1))),"") -> Croatie | P90: F_1 | Q90: =TEXT(R90,"00000")&T90 -> 02820Allemagne | R90: =AB90*1000+AA90*100+Y90*10 -> 2820 | S90: =RANK(R90,$R90:$R93,0) -> 4 | T90: =VLOOKUP(P90,TABLEAU_TEAMS[#All],2,FALSE) -> Allemagne | U90: =SUMPRODUCT((Teams1=T90)*(Teams1_Score<>""))+SUMPRODUCT((Teams2=T90)*(Teams2_Score<>"")) -> 3 | V90: =SUMPRODUCT((Teams1=T90)*(Teams1_Score>Teams2_Score))+SUMPRODUCT((Teams2=T90)*(Teams2_Score>Teams1_Score)) -> 1 | W90: =SUMPRODUCT((Teams1=T90)*(Teams1_Score=Teams2_Score)*(Teams1_Score<>""))+SUMPRODUCT((Teams2=T90)*(Teams2_Score=Teams1_Score)*(Teams2_Score<>"")) -> 0 | X90: =SUMPRODUCT((Teams1=T90)*(Teams1_Score<Teams2_Score))+SUMPRODUCT((Teams2=T90)*(Teams2_Score<Teams1_Score)) -> 2 | Y90: =SUMPRODUCT((Teams1=T90)*(Teams1_Score))+SUMPRODUCT((Teams2=T90)*(Teams2_Score)) -> 2 | Z90: =SUMPRODUCT((Teams1=T90)*(Teams2_Score))+SUMPRODUCT((Teams2=T90)*(Teams1_Score)) -> 4 | AA90: =Y90-Z90 -> -2 | AB90: =3*V90+W90 -> 3
B91: =IF(ROWS($1:2)<=COUNTIF($S$27:$S$30,1),INDEX($T$27:$T$30,SMALL(IF($S$27:$S$30=1,ROW(INDIRECT("1:"&ROWS($S$27:$S$30)))),ROWS($1:2))),"") ->  | P91: F_2 | Q91: =TEXT(R91,"00000")&T91 -> 05930Mexique | R91: =AB91*1000+AA91*100+Y91*10 -> 5930 | S91: =RANK(R91,$R90:$R93,0) -> 2 | T91: =VLOOKUP(P91,TABLEAU_TEAMS[#All],2,FALSE) -> Mexique | U91: =SUMPRODUCT((Teams1=T91)*(Teams1_Score<>""))+SUMPRODUCT((Teams2=T91)*(Teams2_Score<>"")) -> 3 | V91: =SUMPRODUCT((Teams1=T91)*(Teams1_Score>Teams2_Score))+SUMPRODUCT((Teams2=T91)*(Teams2_Score>Teams1_Score)) -> 2 | W91: =SUMPRODUCT((Teams1=T91)*(Teams1_Score=Teams2_Score)*(Teams1_Score<>""))+SUMPRODUCT((Teams2=T91)*(Teams2_Score=Teams1_Score)*(Teams2_Score<>"")) -> 0 | X91: =SUMPRODUCT((Teams1=T91)*(Teams1_Score<Teams2_Score))+SUMPRODUCT((Teams2=T91)*(Teams2_Score<Teams1_Score)) -> 1 | Y91: =SUMPRODUCT((Teams1=T91)*(Teams1_Score))+SUMPRODUCT((Teams2=T91)*(Teams2_Score)) -> 3 | Z91: =SUMPRODUCT((Teams1=T91)*(Teams2_Score))+SUMPRODUCT((Teams2=T91)*(Teams1_Score)) -> 4 | AA91: -1 | AB91: 6
B92: =IF(ROWS($1:3)<=COUNTIF($S$27:$S$30,1),INDEX($T$27:$T$30,SMALL(IF($S$27:$S$30=1,ROW(INDIRECT("1:"&ROWS($S$27:$S$30)))),ROWS($1:3))),"") ->  | P92: F_3 | Q92: =TEXT(R92,"00000")&T92 -> 06350Suède | R92: =AB92*1000+AA92*100+Y92*10 -> 6350 | S92: =RANK(R92,$R90:$R93,0) -> 1 | T92: =VLOOKUP(P92,TABLEAU_TEAMS[#All],2,FALSE) -> Suède | U92: =SUMPRODUCT((Teams1=T92)*(Teams1_Score<>""))+SUMPRODUCT((Teams2=T92)*(Teams2_Score<>"")) -> 3 | V92: =SUMPRODUCT((Teams1=T92)*(Teams1_Score>Teams2_Score))+SUMPRODUCT((Teams2=T92)*(Teams2_Score>Teams1_Score)) -> 2 | W92: =SUMPRODUCT((Teams1=T92)*(Teams1_Score=Teams2_Score)*(Teams1_Score<>""))+SUMPRODUCT((Teams2=T92)*(Teams2_Score=Teams1_Score)*(Teams2_Score<>"")) -> 0 | X92: =SUMPRODUCT((Teams1=T92)*(Teams1_Score<Teams2_Score))+SUMPRODUCT((Teams2=T92)*(Teams2_Score<Teams1_Score)) -> 1 | Y92: =SUMPRODUCT((Teams1=T92)*(Teams1_Score))+SUMPRODUCT((Teams2=T92)*(Teams2_Score)) -> 5 | Z92: =SUMPRODUCT((Teams1=T92)*(Teams2_Score))+SUMPRODUCT((Teams2=T92)*(Teams1_Score)) -> 2 | AA92: 3 | AB92: 6
B93: =IF(ROWS($1:4)<=COUNTIF($S$27:$S$30,1),INDEX($T$27:$T$30,SMALL(IF($S$27:$S$30=1,ROW(INDIRECT("1:"&ROWS($S$27:$S$30)))),ROWS($1:4))),"") ->  | P93: F_4 | Q93: =TEXT(R93,"00000")&T93 -> 03030République de Corée | R93: =AB93*1000+AA93*100+Y93*10 -> 3030 | S93: =RANK(R93,$R90:$R93,0) -> 3 | T93: =VLOOKUP(P93,TABLEAU_TEAMS[#All],2,FALSE) -> République de Corée | U93: =SUMPRODUCT((Teams1=T93)*(Teams1_Score<>""))+SUMPRODUCT((Teams2=T93)*(Teams2_Score<>"")) -> 3 | V93: =SUMPRODUCT((Teams1=T93)*(Teams1_Score>Teams2_Score))+SUMPRODUCT((Teams2=T93)*(Teams2_Score>Teams1_Score)) -> 1 | W93: =SUMPRODUCT((Teams1=T93)*(Teams1_Score=Teams2_Score)*(Teams1_Score<>""))+SUMPRODUCT((Teams2=T93)*(Teams2_Score=Teams1_Score)*(Teams2_Score<>"")) -> 0 | X93: =SUMPRODUCT((Teams1=T93)*(Teams1_Score<Teams2_Score))+SUMPRODUCT((Teams2=T93)*(Teams2_Score<Teams1_Score)) -> 2 | Y93: =SUMPRODUCT((Teams1=T93)*(Teams1_Score))+SUMPRODUCT((Teams2=T93)*(Teams2_Score)) -> 3 | Z93: =SUMPRODUCT((Teams1=T93)*(Teams2_Score))+SUMPRODUCT((Teams2=T93)*(Teams1_Score)) -> 3 | AA93: 0 | AB93: 3
B94: Tirage au sort D2
B95: =IF(COUNTIF($S$27:$S$30,1)>1,IF(ROWS($1:1)<=COUNTIF($S$27:$S$30,1),INDEX($T$27:$T$30,SMALL(IF($S$27:$S$30=1,ROW(INDIRECT("1:"&ROWS($S$27:$S$30)))),ROWS($1:1))),""),IF(COUNTIF($S$27:$S$30,2)>1,IF(ROWS($1:1)<=COUNTIF($S$27:$S$30,2),INDEX($T$27:$T$30,SMALL(IF($S$27:$S$30=2,ROW(INDIRECT("1:"&ROWS($S$27:$S$30)))),ROWS($1:1))),""))) -> FALSE | S95: Rg | T95: Groupe G | U95: MJ | V95: G | W95: N | X95: P | Y95: BP | Z95: BC | AA95: Pts | AB95: Pts
B96: =IF(COUNTIF($S$27:$S$30,1)>1,IF(ROWS($1:2)<=COUNTIF($S$27:$S$30,1),INDEX($T$27:$T$30,SMALL(IF($S$27:$S$30=1,ROW(INDIRECT("1:"&ROWS($S$27:$S$30)))),ROWS($1:2))),""),IF(COUNTIF($S$27:$S$30,2)>1,IF(ROWS($1:2)<=COUNTIF($S$27:$S$30,2),INDEX($T$27:$T$30,SMALL(IF($S$27:$S$30=2,ROW(INDIRECT("1:"&ROWS($S$27:$S$30)))),ROWS($1:2))),""))) -> FALSE | P96: G_1 | Q96: =TEXT(R96,"00000")&T96 -> 09790Belgique | R96: =AB96*1000+AA96*100+Y96*10 -> 9790 | S96: =RANK(R96,$R96:$R99,0) -> 1 | T96: =VLOOKUP(P96,TABLEAU_TEAMS[#All],2,FALSE) -> Belgique | U96: =SUMPRODUCT((Teams1=T96)*(Teams1_Score<>""))+SUMPRODUCT((Teams2=T96)*(Teams2_Score<>"")) -> 3 | V96: =SUMPRODUCT((Teams1=T96)*(Teams1_Score>Teams2_Score))+SUMPRODUCT((Teams2=T96)*(Teams2_Score>Teams1_Score)) -> 3 | W96: =SUMPRODUCT((Teams1=T96)*(Teams1_Score=Teams2_Score)*(Teams1_Score<>""))+SUMPRODUCT((Teams2=T96)*(Teams2_Score=Teams1_Score)*(Teams2_Score<>"")) -> 0 | X96: =SUMPRODUCT((Teams1=T96)*(Teams1_Score<Teams2_Score))+SUMPRODUCT((Teams2=T96)*(Teams2_Score<Teams1_Score)) -> 0 | Y96: =SUMPRODUCT((Teams1=T96)*(Teams1_Score))+SUMPRODUCT((Teams2=T96)*(Teams2_Score)) -> 9 | Z96: =SUMPRODUCT((Teams1=T96)*(Teams2_Score))+SUMPRODUCT((Teams2=T96)*(Teams1_Score)) -> 2 | AA96: =Y96-Z96 -> 7 | AB96: =3*V96+W96 -> 9
B97: =IF(COUNTIF($S$27:$S$30,1)>1,IF(ROWS($1:3)<=COUNTIF($S$27:$S$30,1),INDEX($T$27:$T$30,SMALL(IF($S$27:$S$30=1,ROW(INDIRECT("1:"&ROWS($S$27:$S$30)))),ROWS($1:3))),""),IF(COUNTIF($S$27:$S$30,2)>1,IF(ROWS($1:3)<=COUNTIF($S$27:$S$30,2),INDEX($T$27:$T$30,SMALL(IF($S$27:$S$30=2,ROW(INDIRECT("1:"&ROWS($S$27:$S$30)))),ROWS($1:3))),""))) -> FALSE | P97: G_2 | Q97: =TEXT(R97,"00000")&T97 -> -00880Panama | R97: =AB97*1000+AA97*100+Y97*10 -> -880 | S97: =RANK(R97,$R96:$R99,0) -> 4 | T97: =VLOOKUP(P97,TABLEAU_TEAMS[#All],2,FALSE) -> Panama | U97: =SUMPRODUCT((Teams1=T97)*(Teams1_Score<>""))+SUMPRODUCT((Teams2=T97)*(Teams2_Score<>"")) -> 3 | V97: =SUMPRODUCT((Teams1=T97)*(Teams1_Score>Teams2_Score))+SUMPRODUCT((Teams2=T97)*(Teams2_Score>Teams1_Score)) -> 0 | W97: =SUMPRODUCT((Teams1=T97)*(Teams1_Score=Teams2_Score)*(Teams1_Score<>""))+SUMPRODUCT((Teams2=T97)*(Teams2_Score=Teams1_Score)*(Teams2_Score<>"")) -> 0 | X97: =SUMPRODUCT((Teams1=T97)*(Teams1_Score<Teams2_Score))+SUMPRODUCT((Teams2=T97)*(Teams2_Score<Teams1_Score)) -> 3 | Y97: =SUMPRODUCT((Teams1=T97)*(Teams1_Score))+SUMPRODUCT((Teams2=T97)*(Teams2_Score)) -> 2 | Z97: =SUMPRODUCT((Teams1=T97)*(Teams2_Score))+SUMPRODUCT((Teams2=T97)*(Teams1_Score)) -> 11 | AA97: -9 | AB97: 0
B98: =IF(COUNTIF($S$27:$S$30,1)>1,IF(ROWS($1:4)<=COUNTIF($S$27:$S$30,1),INDEX($T$27:$T$30,SMALL(IF($S$27:$S$30=1,ROW(INDIRECT("1:"&ROWS($S$27:$S$30)))),ROWS($1:4))),""),IF(COUNTIF($S$27:$S$30,2)>1,IF(ROWS($1:4)<=COUNTIF($S$27:$S$30,2),INDEX($T$27:$T$30,SMALL(IF($S$27:$S$30=2,ROW(INDIRECT("1:"&ROWS($S$27:$S$30)))),ROWS($1:4))),""))) -> FALSE | P98: G_3 | Q98: =TEXT(R98,"00000")&T98 -> 02750Tunisie | R98: =AB98*1000+AA98*100+Y98*10 -> 2750 | S98: =RANK(R98,$R96:$R99,0) -> 3 | T98: =VLOOKUP(P98,TABLEAU_TEAMS[#All],2,FALSE) -> Tunisie | U98: =SUMPRODUCT((Teams1=T98)*(Teams1_Score<>""))+SUMPRODUCT((Teams2=T98)*(Teams2_Score<>"")) -> 3 | V98: =SUMPRODUCT((Teams1=T98)*(Teams1_Score>Teams2_Score))+SUMPRODUCT((Teams2=T98)*(Teams2_Score>Teams1_Score)) -> 1 | W98: =SUMPRODUCT((Teams1=T98)*(Teams1_Score=Teams2_Score)*(Teams1_Score<>""))+SUMPRODUCT((Teams2=T98)*(Teams2_Score=Teams1_Score)*(Teams2_Score<>"")) -> 0 | X98: =SUMPRODUCT((Teams1=T98)*(Teams1_Score<Teams2_Score))+SUMPRODUCT((Teams2=T98)*(Teams2_Score<Teams1_Score)) -> 2 | Y98: =SUMPRODUCT((Teams1=T98)*(Teams1_Score))+SUMPRODUCT((Teams2=T98)*(Teams2_Score)) -> 5 | Z98: =SUMPRODUCT((Teams1=T98)*(Teams2_Score))+SUMPRODUCT((Teams2=T98)*(Teams1_Score)) -> 8 | AA98: -3 | AB98: 3
B99: Tirage au sort E1 | P99: G_4 | Q99: =TEXT(R99,"00000")&T99 -> 06580Angleterre | R99: =AB99*1000+AA99*100+Y99*10 -> 6580 | S99: =RANK(R99,$R96:$R99,0) -> 2 | T99: =VLOOKUP(P99,TABLEAU_TEAMS[#All],2,FALSE) -> Angleterre | U99: =SUMPRODUCT((Teams1=T99)*(Teams1_Score<>""))+SUMPRODUCT((Teams2=T99)*(Teams2_Score<>"")) -> 3 | V99: =SUMPRODUCT((Teams1=T99)*(Teams1_Score>Teams2_Score))+SUMPRODUCT((Teams2=T99)*(Teams2_Score>Teams1_Score)) -> 2 | W99: =SUMPRODUCT((Teams1=T99)*(Teams1_Score=Teams2_Score)*(Teams1_Score<>""))+SUMPRODUCT((Teams2=T99)*(Teams2_Score=Teams1_Score)*(Teams2_Score<>"")) -> 0 | X99: =SUMPRODUCT((Teams1=T99)*(Teams1_Score<Teams2_Score))+SUMPRODUCT((Teams2=T99)*(Teams2_Score<Teams1_Score)) -> 1 | Y99: =SUMPRODUCT((Teams1=T99)*(Teams1_Score))+SUMPRODUCT((Teams2=T99)*(Teams2_Score)) -> 8 | Z99: =SUMPRODUCT((Teams1=T99)*(Teams2_Score))+SUMPRODUCT((Teams2=T99)*(Teams1_Score)) -> 3 | AA99: 5 | AB99: 6
B100: =IF(ROWS($1:1)<=COUNTIF($S$33:$S$36,1),INDEX($T$33:$T$36,SMALL(IF($S$33:$S$36=1,ROW(INDIRECT("1:"&ROWS($S$33:$S$36)))),ROWS($1:1))),"") -> Brésil
B101: =IF(ROWS($1:2)<=COUNTIF($S$33:$S$36,1),INDEX($T$33:$T$36,SMALL(IF($S$33:$S$36=1,ROW(INDIRECT("1:"&ROWS($S$33:$S$36)))),ROWS($1:2))),"") ->  | S101: Rg | T101: Groupe H | U101: MJ | V101: G | W101: N | X101: P | Y101: BP | Z101: BC | AA101: Pts | AB101: Pts
B102: =IF(ROWS($1:3)<=COUNTIF($S$33:$S$36,1),INDEX($T$33:$T$36,SMALL(IF($S$33:$S$36=1,ROW(INDIRECT("1:"&ROWS($S$33:$S$36)))),ROWS($1:3))),"") ->  | P102: H_1 | Q102: =TEXT(R102,"00000")&T102 -> 06350Colombie | R102: =AB102*1000+AA102*100+Y102*10 -> 6350 | S102: =RANK(R102,$R102:$R105,0) -> 1 | T102: =VLOOKUP(P102,TABLEAU_TEAMS[#All],2,FALSE) -> Colombie | U102: =SUMPRODUCT((Teams1=T102)*(Teams1_Score<>""))+SUMPRODUCT((Teams2=T102)*(Teams2_Score<>"")) -> 3 | V102: =SUMPRODUCT((Teams1=T102)*(Teams1_Score>Teams2_Score))+SUMPRODUCT((Teams2=T102)*(Teams2_Score>Teams1_Score)) -> 2 | W102: =SUMPRODUCT((Teams1=T102)*(Teams1_Score=Teams2_Score)*(Teams1_Score<>""))+SUMPRODUCT((Teams2=T102)*(Teams2_Score=Teams1_Score)*(Teams2_Score<>"")) -> 0 | X102: =SUMPRODUCT((Teams1=T102)*(Teams1_Score<Teams2_Score))+SUMPRODUCT((Teams2=T102)*(Teams2_Score<Teams1_Score)) -> 1 | Y102: =SUMPRODUCT((Teams1=T102)*(Teams1_Score))+SUMPRODUCT((Teams2=T102)*(Teams2_Score)) -> 5 | Z102: =SUMPRODUCT((Teams1=T102)*(Teams2_Score))+SUMPRODUCT((Teams2=T102)*(Teams1_Score)) -> 2 | AA102: =Y102-Z102 -> 3 | AB102: =3*V102+W102 -> 6
B103: =IF(ROWS($1:4)<=COUNTIF($S$33:$S$36,1),INDEX($T$33:$T$36,SMALL(IF($S$33:$S$36=1,ROW(INDIRECT("1:"&ROWS($S$33:$S$36)))),ROWS($1:4))),"") ->  | P103: H_2 | Q103: =TEXT(R103,"00000")&T103 -> 04040Japon | R103: =AB103*1000+AA103*100+Y103*10 -> 4040 | S103: =RANK(R103,$R102:$R105,0) -> 2 | T103: =VLOOKUP(P103,TABLEAU_TEAMS[#All],2,FALSE) -> Japon | U103: =SUMPRODUCT((Teams1=T103)*(Teams1_Score<>""))+SUMPRODUCT((Teams2=T103)*(Teams2_Score<>"")) -> 3 | V103: =SUMPRODUCT((Teams1=T103)*(Teams1_Score>Teams2_Score))+SUMPRODUCT((Teams2=T103)*(Teams2_Score>Teams1_Score)) -> 1 | W103: =SUMPRODUCT((Teams1=T103)*(Teams1_Score=Teams2_Score)*(Teams1_Score<>""))+SUMPRODUCT((Teams2=T103)*(Teams2_Score=Teams1_Score)*(Teams2_Score<>"")) -> 1 | X103: =SUMPRODUCT((Teams1=T103)*(Teams1_Score<Teams2_Score))+SUMPRODUCT((Teams2=T103)*(Teams2_Score<Teams1_Score)) -> 1 | Y103: =SUMPRODUCT((Teams1=T103)*(Teams1_Score))+SUMPRODUCT((Teams2=T103)*(Teams2_Score)) -> 4 | Z103: =SUMPRODUCT((Teams1=T103)*(Teams2_Score))+SUMPRODUCT((Teams2=T103)*(Teams1_Score)) -> 4 | AA103: 0 | AB103: 4
B104: Tirage au sort E2 | P104: H_3 | Q104: =TEXT(R104,"00000")&T104 -> 02720Pologne | R104: =AB104*1000+AA104*100+Y104*10 -> 2720 | S104: =RANK(R104,$R102:$R105,0) -> 4 | T104: =VLOOKUP(P104,TABLEAU_TEAMS[#All],2,FALSE) -> Pologne | U104: =SUMPRODUCT((Teams1=T104)*(Teams1_Score<>""))+SUMPRODUCT((Teams2=T104)*(Teams2_Score<>"")) -> 3 | V104: =SUMPRODUCT((Teams1=T104)*(Teams1_Score>Teams2_Score))+SUMPRODUCT((Teams2=T104)*(Teams2_Score>Teams1_Score)) -> 1 | W104: =SUMPRODUCT((Teams1=T104)*(Teams1_Score=Teams2_Score)*(Teams1_Score<>""))+SUMPRODUCT((Teams2=T104)*(Teams2_Score=Teams1_Score)*(Teams2_Score<>"")) -> 0 | X104: =SUMPRODUCT((Teams1=T104)*(Teams1_Score<Teams2_Score))+SUMPRODUCT((Teams2=T104)*(Teams2_Score<Teams1_Score)) -> 2 | Y104: =SUMPRODUCT((Teams1=T104)*(Teams1_Score))+SUMPRODUCT((Teams2=T104)*(Teams2_Score)) -> 2 | Z104: =SUMPRODUCT((Teams1=T104)*(Teams2_Score))+SUMPRODUCT((Teams2=T104)*(Teams1_Score)) -> 5 | AA104: -3 | AB104: 3
B105: =IF(COUNTIF($S$33:$S$36,1)>1,IF(ROWS($1:1)<=COUNTIF($S$33:$S$36,1),INDEX($T$33:$T$36,SMALL(IF($S$33:$S$36=1,ROW(INDIRECT("1:"&ROWS($S$33:$S$36)))),ROWS($1:1))),""),IF(COUNTIF($S$33:$S$36,2)>1,IF(ROWS($1:1)<=COUNTIF($S$33:$S$36,2),INDEX($T$33:$T$36,SMALL(IF($S$33:$S$36=2,ROW(INDIRECT("1:"&ROWS($S$33:$S$36)))),ROWS($1:1))),""))) -> FALSE | P105: H_4 | Q105: =TEXT(R105,"00000")&T105 -> 04040Sénégal | R105: =AB105*1000+AA105*100+Y105*10 -> 4040 | S105: =RANK(R105,$R102:$R105,0) -> 2 | T105: =VLOOKUP(P105,TABLEAU_TEAMS[#All],2,FALSE) -> Sénégal | U105: =SUMPRODUCT((Teams1=T105)*(Teams1_Score<>""))+SUMPRODUCT((Teams2=T105)*(Teams2_Score<>"")) -> 3 | V105: =SUMPRODUCT((Teams1=T105)*(Teams1_Score>Teams2_Score))+SUMPRODUCT((Teams2=T105)*(Teams2_Score>Teams1_Score)) -> 1 | W105: =SUMPRODUCT((Teams1=T105)*(Teams1_Score=Teams2_Score)*(Teams1_Score<>""))+SUMPRODUCT((Teams2=T105)*(Teams2_Score=Teams1_Score)*(Teams2_Score<>"")) -> 1 | X105: =SUMPRODUCT((Teams1=T105)*(Teams1_Score<Teams2_Score))+SUMPRODUCT((Teams2=T105)*(Teams2_Score<Teams1_Score)) -> 1 | Y105: =SUMPRODUCT((Teams1=T105)*(Teams1_Score))+SUMPRODUCT((Teams2=T105)*(Teams2_Score)) -> 4 | Z105: =SUMPRODUCT((Teams1=T105)*(Teams2_Score))+SUMPRODUCT((Teams2=T105)*(Teams1_Score)) -> 4 | AA105: 0 | AB105: 4
B106: =IF(COUNTIF($S$33:$S$36,1)>1,IF(ROWS($1:2)<=COUNTIF($S$33:$S$36,1),INDEX($T$33:$T$36,SMALL(IF($S$33:$S$36=1,ROW(INDIRECT("1:"&ROWS($S$33:$S$36)))),ROWS($1:2))),""),IF(COUNTIF($S$33:$S$36,2)>1,IF(ROWS($1:2)<=COUNTIF($S$33:$S$36,2),INDEX($T$33:$T$36,SMALL(IF($S$33:$S$36=2,ROW(INDIRECT("1:"&ROWS($S$33:$S$36)))),ROWS($1:2))),""))) -> FALSE
B107: =IF(COUNTIF($S$33:$S$36,1)>1,IF(ROWS($1:3)<=COUNTIF($S$33:$S$36,1),INDEX($T$33:$T$36,SMALL(IF($S$33:$S$36=1,ROW(INDIRECT("1:"&ROWS($S$33:$S$36)))),ROWS($1:3))),""),IF(COUNTIF($S$33:$S$36,2)>1,IF(ROWS($1:3)<=COUNTIF($S$33:$S$36,2),INDEX($T$33:$T$36,SMALL(IF($S$33:$S$36=2,ROW(INDIRECT("1:"&ROWS($S$33:$S$36)))),ROWS($1:3))),""))) -> FALSE
B108: =IF(COUNTIF($S$33:$S$36,1)>1,IF(ROWS($1:4)<=COUNTIF($S$33:$S$36,1),INDEX($T$33:$T$36,SMALL(IF($S$33:$S$36=1,ROW(INDIRECT("1:"&ROWS($S$33:$S$36)))),ROWS($1:4))),""),IF(COUNTIF($S$33:$S$36,2)>1,IF(ROWS($1:4)<=COUNTIF($S$33:$S$36,2),INDEX($T$33:$T$36,SMALL(IF($S$33:$S$36=2,ROW(INDIRECT("1:"&ROWS($S$33:$S$36)))),ROWS($1:4))),""))) -> FALSE
B109: Tirage au sort F1
B110: =IF(ROWS($1:1)<=COUNTIF($S$39:$S$42,1),INDEX($T$39:$T$42,SMALL(IF($S$39:$S$42=1,ROW(INDIRECT("1:"&ROWS($S$39:$S$42)))),ROWS($1:1))),"") -> Suède
B111: =IF(ROWS($1:2)<=COUNTIF($S$39:$S$42,1),INDEX($T$39:$T$42,SMALL(IF($S$39:$S$42=1,ROW(INDIRECT("1:"&ROWS($S$39:$S$42)))),ROWS($1:2))),"") -> 
B112: =IF(ROWS($1:3)<=COUNTIF($S$39:$S$42,1),INDEX($T$39:$T$42,SMALL(IF($S$39:$S$42=1,ROW(INDIRECT("1:"&ROWS($S$39:$S$42)))),ROWS($1:3))),"") -> 
B113: =IF(ROWS($1:4)<=COUNTIF($S$39:$S$42,1),INDEX($T$39:$T$42,SMALL(IF($S$39:$S$42=1,ROW(INDIRECT("1:"&ROWS($S$39:$S$42)))),ROWS($1:4))),"") -> 
B114: Tirage au sort F2
B115: =IF(COUNTIF($S$39:$S$42,1)>1,IF(ROWS($1:1)<=COUNTIF($S$39:$S$42,1),INDEX($T$39:$T$42,SMALL(IF($S$39:$S$42=1,ROW(INDIRECT("1:"&ROWS($S$39:$S$42)))),ROWS($1:1))),""),IF(COUNTIF($S$39:$S$42,2)>1,IF(ROWS($1:1)<=COUNTIF($S$39:$S$42,2),INDEX($T$39:$T$42,SMALL(IF($S$39:$S$42=2,ROW(INDIRECT("1:"&ROWS($S$39:$S$42)))),ROWS($1:1))),""))) -> FALSE
B116: =IF(COUNTIF($S$39:$S$42,1)>1,IF(ROWS($1:2)<=COUNTIF($S$39:$S$42,1),INDEX($T$39:$T$42,SMALL(IF($S$39:$S$42=1,ROW(INDIRECT("1:"&ROWS($S$39:$S$42)))),ROWS($1:2))),""),IF(COUNTIF($S$39:$S$42,2)>1,IF(ROWS($1:2)<=COUNTIF($S$39:$S$42,2),INDEX($T$39:$T$42,SMALL(IF($S$39:$S$42=2,ROW(INDIRECT("1:"&ROWS($S$39:$S$42)))),ROWS($1:2))),""))) -> FALSE
B117: =IF(COUNTIF($S$39:$S$42,1)>1,IF(ROWS($1:3)<=COUNTIF($S$39:$S$42,1),INDEX($T$39:$T$42,SMALL(IF($S$39:$S$42=1,ROW(INDIRECT("1:"&ROWS($S$39:$S$42)))),ROWS($1:3))),""),IF(COUNTIF($S$39:$S$42,2)>1,IF(ROWS($1:3)<=COUNTIF($S$39:$S$42,2),INDEX($T$39:$T$42,SMALL(IF($S$39:$S$42=2,ROW(INDIRECT("1:"&ROWS($S$39:$S$42)))),ROWS($1:3))),""))) -> FALSE
B118: =IF(COUNTIF($S$39:$S$42,1)>1,IF(ROWS($1:4)<=COUNTIF($S$39:$S$42,1),INDEX($T$39:$T$42,SMALL(IF($S$39:$S$42=1,ROW(INDIRECT("1:"&ROWS($S$39:$S$42)))),ROWS($1:4))),""),IF(COUNTIF($S$39:$S$42,2)>1,IF(ROWS($1:4)<=COUNTIF($S$39:$S$42,2),INDEX($T$39:$T$42,SMALL(IF($S$39:$S$42=2,ROW(INDIRECT("1:"&ROWS($S$39:$S$42)))),ROWS($1:4))),""))) -> FALSE
B119: Tirage au sort G1
B120: =IF(ROWS($1:1)<=COUNTIF($S$45:$S$48,1),INDEX($T$45:$T$48,SMALL(IF($S$45:$S$48=1,ROW(INDIRECT("1:"&ROWS($S$45:$S$48)))),ROWS($1:1))),"") -> Belgique
B121: =IF(ROWS($1:2)<=COUNTIF($S$45:$S$48,1),INDEX($T$45:$T$48,SMALL(IF($S$45:$S$48=1,ROW(INDIRECT("1:"&ROWS($S$45:$S$48)))),ROWS($1:2))),"") -> 
B122: =IF(ROWS($1:3)<=COUNTIF($S$45:$S$48,1),INDEX($T$45:$T$48,SMALL(IF($S$45:$S$48=1,ROW(INDIRECT("1:"&ROWS($S$45:$S$48)))),ROWS($1:3))),"") -> 
B123: =IF(ROWS($1:4)<=COUNTIF($S$45:$S$48,1),INDEX($T$45:$T$48,SMALL(IF($S$45:$S$48=1,ROW(INDIRECT("1:"&ROWS($S$45:$S$48)))),ROWS($1:4))),"") -> 
B124: Tirage au sort G2
B125: =IF(COUNTIF($S$45:$S$48,1)>1,IF(ROWS($1:1)<=COUNTIF($S$45:$S$48,1),INDEX($T$45:$T$48,SMALL(IF($S$45:$S$48=1,ROW(INDIRECT("1:"&ROWS($S$45:$S$48)))),ROWS($1:1))),""),IF(COUNTIF($S$45:$S$48,2)>1,IF(ROWS($1:1)<=COUNTIF($S$45:$S$48,2),INDEX($T$45:$T$48,SMALL(IF($S$45:$S$48=2,ROW(INDIRECT("1:"&ROWS($S$45:$S$48)))),ROWS($1:1))),""))) -> FALSE
B126: =IF(COUNTIF($S$45:$S$48,1)>1,IF(ROWS($1:2)<=COUNTIF($S$45:$S$48,1),INDEX($T$45:$T$48,SMALL(IF($S$45:$S$48=1,ROW(INDIRECT("1:"&ROWS($S$45:$S$48)))),ROWS($1:2))),""),IF(COUNTIF($S$45:$S$48,2)>1,IF(ROWS($1:2)<=COUNTIF($S$45:$S$48,2),INDEX($T$45:$T$48,SMALL(IF($S$45:$S$48=2,ROW(INDIRECT("1:"&ROWS($S$45:$S$48)))),ROWS($1:2))),""))) -> FALSE
B127: =IF(COUNTIF($S$45:$S$48,1)>1,IF(ROWS($1:3)<=COUNTIF($S$45:$S$48,1),INDEX($T$45:$T$48,SMALL(IF($S$45:$S$48=1,ROW(INDIRECT("1:"&ROWS($S$45:$S$48)))),ROWS($1:3))),""),IF(COUNTIF($S$45:$S$48,2)>1,IF(ROWS($1:3)<=COUNTIF($S$45:$S$48,2),INDEX($T$45:$T$48,SMALL(IF($S$45:$S$48=2,ROW(INDIRECT("1:"&ROWS($S$45:$S$48)))),ROWS($1:3))),""))) -> FALSE
B128: =IF(COUNTIF($S$45:$S$48,1)>1,IF(ROWS($1:4)<=COUNTIF($S$45:$S$48,1),INDEX($T$45:$T$48,SMALL(IF($S$45:$S$48=1,ROW(INDIRECT("1:"&ROWS($S$45:$S$48)))),ROWS($1:4))),""),IF(COUNTIF($S$45:$S$48,2)>1,IF(ROWS($1:4)<=COUNTIF($S$45:$S$48,2),INDEX($T$45:$T$48,SMALL(IF($S$45:$S$48=2,ROW(INDIRECT("1:"&ROWS($S$45:$S$48)))),ROWS($1:4))),""))) -> FALSE
B129: Tirage au sort H1
B130: =IF(ROWS($1:1)<=COUNTIF($S$51:$S$54,1),INDEX($T$51:$T$54,SMALL(IF($S$51:$S$54=1,ROW(INDIRECT("1:"&ROWS($S$51:$S$54)))),ROWS($1:1))),"") -> Colombie
B131: =IF(ROWS($1:2)<=COUNTIF($S$51:$S$54,1),INDEX($T$51:$T$54,SMALL(IF($S$51:$S$54=1,ROW(INDIRECT("1:"&ROWS($S$51:$S$54)))),ROWS($1:2))),"") -> 
B132: =IF(ROWS($1:3)<=COUNTIF($S$51:$S$54,1),INDEX($T$51:$T$54,SMALL(IF($S$51:$S$54=1,ROW(INDIRECT("1:"&ROWS($S$51:$S$54)))),ROWS($1:3))),"") -> 
B133: =IF(ROWS($1:4)<=COUNTIF($S$51:$S$54,1),INDEX($T$51:$T$54,SMALL(IF($S$51:$S$54=1,ROW(INDIRECT("1:"&ROWS($S$51:$S$54)))),ROWS($1:4))),"") -> 
B134: Tirage au sort H2
B135: =IF(COUNTIF($S$51:$S$54,1)>1,IF(ROWS($1:1)<=COUNTIF($S$51:$S$54,1),INDEX($T$51:$T$54,SMALL(IF($S$51:$S$54=1,ROW(INDIRECT("1:"&ROWS($S$51:$S$54)))),ROWS($1:1))),""),IF(COUNTIF($S$51:$S$54,2)>1,IF(ROWS($1:1)<=COUNTIF($S$51:$S$54,2),INDEX($T$51:$T$54,SMALL(IF($S$51:$S$54=2,ROW(INDIRECT("1:"&ROWS($S$51:$S$54)))),ROWS($1:1))),""))) -> Sénégal
B136: =IF(COUNTIF($S$51:$S$54,1)>1,IF(ROWS($1:2)<=COUNTIF($S$51:$S$54,1),INDEX($T$51:$T$54,SMALL(IF($S$51:$S$54=1,ROW(INDIRECT("1:"&ROWS($S$51:$S$54)))),ROWS($1:2))),""),IF(COUNTIF($S$51:$S$54,2)>1,IF(ROWS($1:2)<=COUNTIF($S$51:$S$54,2),INDEX($T$51:$T$54,SMALL(IF($S$51:$S$54=2,ROW(INDIRECT("1:"&ROWS($S$51:$S$54)))),ROWS($1:2))),""))) -> Japon
B137: =IF(COUNTIF($S$51:$S$54,1)>1,IF(ROWS($1:3)<=COUNTIF($S$51:$S$54,1),INDEX($T$51:$T$54,SMALL(IF($S$51:$S$54=1,ROW(INDIRECT("1:"&ROWS($S$51:$S$54)))),ROWS($1:3))),""),IF(COUNTIF($S$51:$S$54,2)>1,IF(ROWS($1:3)<=COUNTIF($S$51:$S$54,2),INDEX($T$51:$T$54,SMALL(IF($S$51:$S$54=2,ROW(INDIRECT("1:"&ROWS($S$51:$S$54)))),ROWS($1:3))),""))) -> 
B138: =IF(COUNTIF($S$51:$S$54,1)>1,IF(ROWS($1:4)<=COUNTIF($S$51:$S$54,1),INDEX($T$51:$T$54,SMALL(IF($S$51:$S$54=1,ROW(INDIRECT("1:"&ROWS($S$51:$S$54)))),ROWS($1:4))),""),IF(COUNTIF($S$51:$S$54,2)>1,IF(ROWS($1:4)<=COUNTIF($S$51:$S$54,2),INDEX($T$51:$T$54,SMALL(IF($S$51:$S$54=2,ROW(INDIRECT("1:"&ROWS($S$51:$S$54)))),ROWS($1:4))),""))) -> 

Sheet DATA_1_TEAMS (hidden)
A1: CODE | B1: TEAM | C1: GROUP | D1: GROUP_INITIAL_RANK
A2: =+TABLEAU_TEAMS[[#This Row],[GROUP]]&"_"&TABLEAU_TEAMS[[#This Row],[GROUP_INITIAL_RANK]] -> A_1 | B2: Russie | C2: A | D2: 1
A3: =+TABLEAU_TEAMS[[#This Row],[GROUP]]&"_"&TABLEAU_TEAMS[[#This Row],[GROUP_INITIAL_RANK]] -> A_2 | B3: Arabie Saoudite | C3: A | D3: 2
A4: =+TABLEAU_TEAMS[[#This Row],[GROUP]]&"_"&TABLEAU_TEAMS[[#This Row],[GROUP_INITIAL_RANK]] -> A_3 | B4: Egypte | C4: A | D4: 3
A5: =+TABLEAU_TEAMS[[#This Row],[GROUP]]&"_"&TABLEAU_TEAMS[[#This Row],[GROUP_INITIAL_RANK]] -> A_4 | B5: Uruguay | C5: A | D5: 4
A6: =+TABLEAU_TEAMS[[#This Row],[GROUP]]&"_"&TABLEAU_TEAMS[[#This Row],[GROUP_INITIAL_RANK]] -> B_1 | B6: Maroc | C6: B | D6: 1
A7: =+TABLEAU_TEAMS[[#This Row],[GROUP]]&"_"&TABLEAU_TEAMS[[#This Row],[GROUP_INITIAL_RANK]] -> B_2 | B7: RI Iran | C7: B | D7: 2
A8: =+TABLEAU_TEAMS[[#This Row],[GROUP]]&"_"&TABLEAU_TEAMS[[#This Row],[GROUP_INITIAL_RANK]] -> B_3 | B8: Portugal | C8: B | D8: 3
A9: =+TABLEAU_TEAMS[[#This Row],[GROUP]]&"_"&TABLEAU_TEAMS[[#This Row],[GROUP_INITIAL_RANK]] -> B_4 | B9: Espagne | C9: B | D9: 4
A10: =+TABLEAU_TEAMS[[#This Row],[GROUP]]&"_"&TABLEAU_TEAMS[[#This Row],[GROUP_INITIAL_RANK]] -> C_1 | B10: France | C10: C | D10: 1
A11: =+TABLEAU_TEAMS[[#This Row],[GROUP]]&"_"&TABLEAU_TEAMS[[#This Row],[GROUP_INITIAL_RANK]] -> C_2 | B11: Australie | C11: C | D11: 2
A12: =+TABLEAU_TEAMS[[#This Row],[GROUP]]&"_"&TABLEAU_TEAMS[[#This Row],[GROUP_INITIAL_RANK]] -> C_3 | B12: Pérou | C12: C | D12: 3
A13: =+TABLEAU_TEAMS[[#This Row],[GROUP]]&"_"&TABLEAU_TEAMS[[#This Row],[GROUP_INITIAL_RANK]] -> C_4 | B13: Danemark | C13: C | D13: 4
A14: =+TABLEAU_TEAMS[[#This Row],[GROUP]]&"_"&TABLEAU_TEAMS[[#This Row],[GROUP_INITIAL_RANK]] -> D_1 | B14: Argentine | C14: D | D14: 1
A15: =+TABLEAU_TEAMS[[#This Row],[GROUP]]&"_"&TABLEAU_TEAMS[[#This Row],[GROUP_INITIAL_RANK]] -> D_2 | B15: Islande | C15: D | D15: 2
A16: =+TABLEAU_TEAMS[[#This Row],[GROUP]]&"_"&TABLEAU_TEAMS[[#This Row],[GROUP_INITIAL_RANK]] -> D_3 | B16: Croatie | C16: D | D16: 3
A17: =+TABLEAU_TEAMS[[#This Row],[GROUP]]&"_"&TABLEAU_TEAMS[[#This Row],[GROUP_INITIAL_RANK]] -> D_4 | B17: Nigeria | C17: D | D17: 4
A18: =+TABLEAU_TEAMS[[#This Row],[GROUP]]&"_"&TABLEAU_TEAMS[[#This Row],[GROUP_INITIAL_RANK]] -> E_1 | B18: Costa Rica | C18: E | D18: 1
A19: =+TABLEAU_TEAMS[[#This Row],[GROUP]]&"_"&TABLEAU_TEAMS[[#This Row],[GROUP_INITIAL_RANK]] -> E_2 | B19: Serbie | C19: E | D19: 2
A20: =+TABLEAU_TEAMS[[#This Row],[GROUP]]&"_"&TABLEAU_TEAMS[[#This Row],[GROUP_INITIAL_RANK]] -> E_3 | B20: Brésil | C20: E | D20: 3
A21: =+TABLEAU_TEAMS[[#This Row],[GROUP]]&"_"&TABLEAU_TEAMS[[#This Row],[GROUP_INITIAL_RANK]] -> E_4 | B21: Suisse | C21: E | D21: 4
A22: =+TABLEAU_TEAMS[[#This Row],[GROUP]]&"_"&TABLEAU_TEAMS[[#This Row],[GROUP_INITIAL_RANK]] -> F_1 | B22: Allemagne | C22: F | D22: 1
A23: =+TABLEAU_TEAMS[[#This Row],[GROUP]]&"_"&TABLEAU_TEAMS[[#This Row],[GROUP_INITIAL_RANK]] -> F_2 | B23: Mexique | C23: F | D23: 2
A24: =+TABLEAU_TEAMS[[#This Row],[GROUP]]&"_"&TABLEAU_TEAMS[[#This Row],[GROUP_INITIAL_RANK]] -> F_3 | B24: Suède | C24: F | D24: 3
A25: =+TABLEAU_TEAMS[[#This Row],[GROUP]]&"_"&TABLEAU_TEAMS[[#This Row],[GROUP_INITIAL_RANK]] -> F_4 | B25: République de Corée | C25: F | D25: 4
A26: =+TABLEAU_TEAMS[[#This Row],[GROUP]]&"_"&TABLEAU_TEAMS[[#This Row],[GROUP_INITIAL_RANK]] -> G_1 | B26: Belgique | C26: G | D26: 1
A27: =+TABLEAU_TEAMS[[#This Row],[GROUP]]&"_"&TABLEAU_TEAMS[[#This Row],[GROUP_INITIAL_RANK]] -> G_2 | B27: Panama | C27: G | D27: 2
A28: =+TABLEAU_TEAMS[[#This Row],[GROUP]]&"_"&TABLEAU_TEAMS[[#This Row],[GROUP_INITIAL_RANK]] -> G_3 | B28: Tunisie | C28: G | D28: 3
A29: =+TABLEAU_TEAMS[[#This Row],[GROUP]]&"_"&TABLEAU_TEAMS[[#This Row],[GROUP_INITIAL_RANK]] -> G_4 | B29: Angleterre | C29: G | D29: 4
A30: =+TABLEAU_TEAMS[[#This Row],[GROUP]]&"_"&TABLEAU_TEAMS[[#This Row],[GROUP_INITIAL_RANK]] -> H_1 | B30: Colombie | C30: H | D30: 1
A31: =+TABLEAU_TEAMS[[#This Row],[GROUP]]&"_"&TABLEAU_TEAMS[[#This Row],[GROUP_INITIAL_RANK]] -> H_2 | B31: Japon | C31: H | D31: 2
A32: =+TABLEAU_TEAMS[[#This Row],[GROUP]]&"_"&TABLEAU_TEAMS[[#This Row],[GROUP_INITIAL_RANK]] -> H_3 | B32: Pologne | C32: H | D32: 3
A33: =+TABLEAU_TEAMS[[#This Row],[GROUP]]&"_"&TABLEAU_TEAMS[[#This Row],[GROUP_INITIAL_RANK]] -> H_4 | B33: Sénégal | C33: H | D33: 4

Sheet DATA_1_MATCHS (hidden)
A1: MATCH_NUMBER | B1: MATCH_DATE | C1: MATCH_TIME | D1: TEAM_1 | E1: TEAM_2
A2: 1 | B2: 2018-06-14 | C2: 18:00:00 | D2: Russie | E2: Arabie Saoudite
A3: 2 | B3: 2018-06-15 | C3: 17:00:00 | D3: Egypte | E3: Uruguay
A4: 3 | B4: 2018-06-15 | C4: 18:00:00 | D4: Maroc | E4: RI Iran
A5: 4 | B5: 2018-06-15 | C5: 21:00:00 | D5: Portugal | E5: Espagne
A6: 5 | B6: 2018-06-16 | C6: 13:00:00 | D6: France | E6: Australie
A7: 6 | B7: 2018-06-16 | C7: 19:00:00 | D7: Pérou | E7: Danemark
A8: 7 | B8: 2018-06-16 | C8: 16:00:00 | D8: Argentine | E8: Islande
A9: 8 | B9: 2018-06-16 | C9: 21:00:00 | D9: Croatie | E9: Nigeria
A10: 9 | B10: 2018-06-17 | C10: 16:00:00 | D10: Costa Rica | E10: Serbie
A11: 10 | B11: 2018-06-17 | C11: 21:00:00 | D11: Brésil | E11: Suisse
A12: 11 | B12: 2018-06-17 | C12: 18:00:00 | D12: Allemagne | E12: Mexique
A13: 12 | B13: 2018-06-18 | C13: 15:00:00 | D13: Suède | E13: République de Corée
A14: 13 | B14: 2018-06-18 | C14: 18:00:00 | D14: Belgique | E14: Panama
A15: 14 | B15: 2018-06-18 | C15: 21:00:00 | D15: Tunisie | E15: Angleterre
A16: 15 | B16: 2018-06-19 | C16: 15:00:00 | D16: Colombie | E16: Japon
A17: 16 | B17: 2018-06-19 | C17: 18:00:00 | D17: Pologne | E17: Sénégal
A18: 17 | B18: 2018-06-19 | C18: 21:00:00 | D18: Russie | E18: Egypte
A19: 18 | B19: 2018-06-20 | C19: 18:00:00 | D19: Uruguay | E19: Arabie Saoudite
A20: 19 | B20: 2018-06-20 | C20: 15:00:00 | D20: Portugal | E20: Maroc
A21: 20 | B21: 2018-06-20 | C21: 21:00:00 | D21: RI Iran | E21: Espagne
A22: 21 | B22: 2018-06-21 | C22: 16:00:00 | D22: Danemark | E22: Australie
A23: 22 | B23: 2018-06-21 | C23: 20:00:00 | D23: France | E23: Pérou
A24: 23 | B24: 2018-06-21 | C24: 21:00:00 | D24: Argentine | E24: Croatie
A25: 24 | B25: 2018-06-22 | C25: 18:00:00 | D25: Nigeria | E25: Islande
A26: 25 | B26: 2018-06-22 | C26: 15:00:00 | D26: Brésil | E26: Costa Rica
A27: 26 | B27: 2018-06-22 | C27: 20:00:00 | D27: Serbie | E27: Suisse
A28: 27 | B28: 2018-06-23 | C28: 18:00:00 | D28: République de Corée | E28: Mexique
A29: 28 | B29: 2018-06-23 | C29: 21:00:00 | D29: Allemagne | E29: Suède
A30: 29 | B30: 2018-06-23 | C30: 15:00:00 | D30: Belgique | E30: Tunisie
A31: 30 | B31: 2018-06-24 | C31: 15:00:00 | D31: Angleterre | E31: Panama
A32: 31 | B32: 2018-06-24 | C32: 20:00:00 | D32: Japon | E32: Sénégal
A33: 32 | B33: 2018-06-24 | C33: 21:00:00 | D33: Pologne | E33: Colombie
A34: 33 | B34: 2018-06-25 | C34: 18:00:00 | D34: Uruguay | E34: Russie
A35: 34 | B35: 2018-06-25 | C35: 17:00:00 | D35: Arabie Saoudite | E35: Egypte
A36: 35 | B36: 2018-06-25 | C36: 21:00:00 | D36: RI Iran | E36: Portugal
A37: 36 | B37: 2018-06-25 | C37: 20:00:00 | D37: Espagne | E37: Maroc
A38: 37 | B38: 2018-06-26 | C38: 17:00:00 | D38: Danemark | E38: France
A39: 38 | B39: 2018-06-26 | C39: 17:00:00 | D39: Australie | E39: Pérou
A40: 39 | B40: 2018-06-26 | C40: 21:00:00 | D40: Nigeria | E40: Argentine
A41: 40 | B41: 2018-06-26 | C41: 21:00:00 | D41: Islande | E41: Croatie
A42: 41 | B42: 2018-06-27 | C42: 21:00:00 | D42: Serbie | E42: Brésil
A43: 42 | B43: 2018-06-27 | C43: 21:00:00 | D43: Suisse | E43: Costa Rica
A44: 43 | B44: 2018-06-27 | C44: 19:00:00 | D44: Mexique | E44: Suède
A45: 44 | B45: 2018-06-27 | C45: 17:00:00 | D45: République de Corée | E45: Allemagne
A46: 45 | B46: 2018-06-28 | C46: 21:00:00 | D46: Panama | E46: Tunisie
A47: 46 | B47: 2018-06-28 | C47: 20:00:00 | D47: Angleterre | E47: Belgique
A48: 47 | B48: 2018-06-28 | C48: 17:00:00 | D48: Japon | E48: Pologne
A49: 48 | B49: 2018-06-28 | C49: 18:00:00 | D49: Sénégal | E49: Colombie
